Cogmind - Beta 13 @@@ ROGUE MODE // 2024.03.10 @ 15:54:46 Player: Pogmind Result: Escaped singularity! Performance ------------- Evolutions (9) 4500 Regions Visited (35) 7000 Robots Destroyed (892) 4460 Value Destroyed (50688) 50688 Prototype IDs (315) 6300 Alien Tech Used (13) 2600 Bonus (82244) 82244 TOTAL SCORE: 157792 Bonus ------- Triggered High Security 500 High Alert Combat Kills 33836 Follower Combat Kills 2836 Met Data Miner 300 Met Imprinter 300 Destroyed Z-Imprinter 1000 Met Warlord at Base 500 MAIN.C Attacked Warlord 500 Met Warlord at Research 2000 Scanned by Researcher 500 Met Sigix 2000 Destroyed MAIN.C Guards 500 Met MAIN.C 5000 Destroyed MAIN.C Shell 5000 Destroyed MAIN.C 10000 Met Warlord at Command 2000 Met Architect 300 Destroyed A8 300 Destroyed A6 400 Destroyed Architect 15000 Win 3000 Friendly Fire -3528 Cogmind --------- Core Integrity 628/1600 Matter 255/300 Energy 99/100 System Corruption 2% Temperature Cool (0) Movement Core (50) Location Near Former Tau Ceti IV Parts ------- > --- POWER (2) -------- (None) > --- PROPULSION (3) --- (None) > --- UTILITY (15) ----- (None) > --- WEAPON (6) ------- (None) > --- INVENTORY (5) ---- Armored Heavy Treads Centrium Wheel Experimental Matter Compressor (500) Advanced Force Field Peak State ------------ > --- POWER ------------ Vortex Chain Reactor > --- PROPULSION ------- Enhanced Armored Heavy Treads Centrium Wheel > --- UTILITY ---------- Desublimator Experimental Cooling System Experimental Cooling System Huge Storage Unit Spectral Analyzer Experimental Terrain Scan Processor Experimental Targeting Computer Experimental Targeting Computer Experimental Core Analyzer Experimental Weapon Cycler Experimental Phase Shifter Heavy Regenerative Plating Graphene Brace AEGIS Remote Shield > --- WEAPON ----------- Blast Cannon Blast Cannon Perforator > --- INVENTORY -------- Zero-point Reactor Zero-point Reactor Armored Heavy Treads Centrium Wheel Centrium Wheel Centrium Wheel Centrium Wheel Centrium Wheel Experimental Cooling System Experimental Coolant Injector Experimental Energy Well Experimental Matter Compressor Long-range Terrain Scanner Experimental Targeting Computer Experimental Core Analyzer Experimental Weapon Cycler Experimental Phase Shifter Advanced Force Field Advanced Force Field Long-range Tractor Beam Blast Cannon [Rating: 253] Favorites ----------- Power Quantum Reactor Engine Improved Deuterium Engine Power Core Light Nuclear Core Reactor Quantum Reactor Propulsion Armored Huge Wheel Treads Light Treads Leg High-density Centrium Leg Wheel Armored Huge Wheel Hover Unit Zionite Glidesys II Utility Advanced Hacking Suite Device Experimental Cooling System Storage Humpback Processor Experimental Core Analyzer Hackware Advanced Hacking Suite Protection Heavy Regenerative Plating Artifact Core Physics Calibrator Weapon Heavy Plasma Cannon Energy Gun Enhanced Quantum Rifle Energy Cannon Heavy Plasma Cannon Ballistic Gun Battle Rifle Ballistic Cannon Blast Cannon Launcher Long-range Missile Launcher Special Weapon Multitool Impact Weapon Makeshift Hammer Slashing Weapon Makeshift Axe Piercing Weapon Lance Build | -11 -10 -10 -10 -8 -7 -7 -7 -7 -6 -6 -6 -6 -6 -6 -5 -5 -5 -5 -5 -5 -5 -4 -4 -4 -4 -4 -3 -3 -3 -2 -2 -2 -1 -1 -1 ------- Run | Yrd Mat Min Sub Mat Fac Low Low Dat Pro Fac Low Low Zio Dee Pro Fac Was Fac Upp Upp War Pro Fac Upp Upp Zhi Pro Res Tes Res Qua Sec Acc Com Ac0 Slots Evolved 18 | . . . . 4 2 . . . . 2 . . . . . 2 . . . . . . 2 . . . . 2 . 2 . . 2 . . Power . | . . . . . . . . . . . . . . . . . . . . . . . . . . . . . . . . . . . . Propulsion 1 | . . . . . . . . . . . . . . . . . . . . . . . . . . . . . . 2 . . -1 . . Utility 13 | . . . . 3 2 . . . . 2 . . . . . 1 . . . . . . . . . . . 2 . . . . 3 . . Weapon 4 | . . . . 1 . . . . . . . . . . . 1 . . . . . . 2 . . . . . . . . . . . . Parts Attached 2061 | 7 17 23 69 159 105 30 15 15 43 81 9 4 10 52 17 64 17 84 22 29 24 14 64 19 21 14 44 45 123 52 161 176 42 319 71 Power 56 | 1 2 2 4 4 1 . . . 2 3 . . . 2 . . 1 . . 1 1 . 3 . . 2 . 2 8 5 6 . . 6 . Engine 15 | 1 2 2 4 3 1 . . . 1 1 . . . . . . . . . . . . . . . . . . . . . . . . . Core 5 | . . . . 1 . . . . . 1 . . . . . . . . . . . . 1 . . . . . 1 . 1 . . . . Reactor 36 | . . . . . . . . . 1 1 . . . 2 . . 1 . . 1 1 . 2 . . 2 . 2 7 5 5 . . 6 . Propulsion 111 | 2 2 . 4 23 3 1 . . . 2 . . . 14 . 1 . 1 . . . . 1 . . 2 . 1 7 6 10 3 . 21 7 Treads 38 | 2 2 . 1 14 . . . . . . . . . . . . . . . . . . . . . . . . . 2 4 1 . 10 2 Leg 8 | . . . . . . . . . . . . . . 3 . . . . . . . . . . . 1 . . 2 . 2 . . . . Wheel 63 | . . . 3 9 3 1 . . . 2 . . . 9 . 1 . 1 . . . . 1 . . 1 . 1 5 4 4 2 . 11 5 Hover 2 | . . . . . . . . . . . . . . 2 . . . . . . . . . . . . . . . . . . . . . Flight . | . . . . . . . . . . . . . . . . . . . . . . . . . . . . . . . . . . . . Utility 1362 | 2 3 12 25 91 44 19 8 9 26 54 7 3 6 24 8 50 16 71 18 20 11 10 51 15 21 4 36 36 82 34 99 141 35 228 43 Device 1080 | 1 1 7 17 73 31 12 5 2 18 42 5 3 5 16 7 45 14 65 15 18 9 9 45 15 21 3 30 26 60 17 66 115 34 192 36 Storage 39 | 1 1 . 4 6 1 . 1 2 . 1 . . . 2 . . . . 1 . . 1 2 . . 1 . . 3 4 2 . . 6 . Processor 21 | . . . . . 1 . . 2 . . . . . . . . . . . . . . . . . . 1 1 . 1 . . . 10 5 Hackware 30 | . . . . 2 1 . . . . 8 . . . . . 5 . 1 . . . . 1 . . . . 4 4 . 3 . . 1 . Protection 176 | . 1 5 4 10 10 7 2 3 8 3 2 . 1 6 1 . 2 5 2 2 2 . 3 . . . 5 5 15 12 27 12 . 19 2 Artifact 16 | . . . . . . . . . . . . . . . . . . . . . . . . . . . . . . . 1 14 1 . . Weapon 532 | 2 10 9 36 41 57 10 7 6 15 22 2 1 4 12 9 13 . 12 4 8 12 4 9 4 . 6 8 6 26 7 46 32 7 64 21 Energy Gun 99 | 1 1 . . 9 26 4 5 2 4 7 . . . 3 . . . . . . . . . . . . 1 . 7 . 22 . 1 6 . Energy Cannon 128 | . . 2 24 3 2 1 . . 1 3 1 1 2 4 3 3 . 4 1 1 5 1 2 . . 5 . 3 11 . 6 13 1 16 9 Ballistic Gun 22 | 1 3 . 4 11 . . . . . . . . . . . . . . . . . . . . . . . . . . . . . 3 . Ballistic Cannon 103 | . 3 4 2 3 1 . . 1 1 . . . . . . 5 . 1 . . . . . . . . . . 3 . 15 17 3 32 12 Launcher 49 | . 2 2 4 3 2 2 2 1 4 1 1 . . 3 3 2 . . 2 3 1 . 1 2 . 1 2 . . 1 . . 1 3 . Special Weapon 48 | . 1 1 2 5 9 . . . . 5 . . 1 1 . . . 3 . . 4 2 4 . . . 2 . 1 1 2 . 1 3 . Impact Weapon 34 | . . . . 5 17 1 . 1 3 6 . . 1 . . . . . . . . . . . . . . . . . . . . . . Slashing Weapon 47 | . . . . 2 . 2 . 1 2 . . . . 1 3 3 . 4 1 4 2 1 2 2 . . 3 3 4 3 1 2 . 1 . Piercing Weapon 2 | . . . . . . . . . . . . . . . . . . . . . . . . . . . . . . 2 . . . . . Special Melee Weapon . | . . . . . . . . . . . . . . . . . . . . . . . . . . . . . . . . . . . . Unidentified Prototypes 85 | . . 1 . 4 . . . . 1 . . . 3 16 . . . . . 1 6 . . . . 3 . . 14 3 10 6 1 15 1 Corrupted Parts 4 | . . . . . . . . . 2 . . . . . . . . . . . . . . . . . . . 1 . . 1 . . . System Corruption 35 | . . . . . . . . . 14 . . . . . . . . . . . . . . . . . . . 10 . . 11 . . . Parts Lost 53 | . . . 1 23 3 . . 1 . 4 . . . . . . 1 1 . 1 . . . . . . . 2 2 . 4 . . 3 7 Power 6 | . . . . 2 . . . . . . . . . . . . . . . . . . . . . . . 1 1 . 2 . . . . Propulsion 7 | . . . . 5 1 . . . . . . . . . . . . . . . . . . . . . . 1 . . . . . . . Utility 23 | . . . . 8 1 . . 1 . 2 . . . . . . . 1 . . . . . . . . . . . . 2 . . 3 5 Weapon 17 | . . . 1 8 1 . . . . 2 . . . . . . 1 . . 1 . . . . . . . . 1 . . . . . 2 Highest Loss Streak 12 | . . . 1 12 1 . . 1 . 2 . . . . . . 1 1 . 1 . . . . . . . 1 1 . 1 . . 1 3 To Critical Strikes 1 | . . . . . . . . . . . . . . . . . . . . . . . . . . . . 1 . . . . . . . Average Slot Usage (%) 82 | . 99 100 87 86 88 83 83 83 79 85 78 73 72 72 73 80 84 81 81 77 82 77 78 79 79 57 79 69 79 90 89 88 86 79 77 Engine 3 | . 14 14 13 8 7 7 7 7 6 2 . . . . . . . . . . 4 . . . . . . . . . . . . . . Reactor 3 | . . . . . . . . . . 2 6 6 6 6 6 5 5 5 5 5 3 5 5 5 5 4 5 5 8 7 7 8 7 6 3 Treads 5 | . 27 28 16 11 . . . . . . . . . . . . . . . . . . . . . . . . . 1 9 4 3 2 1 Wheel 6 | . . . 11 6 11 7 7 7 7 6 6 6 6 5 6 4 5 5 5 5 5 5 5 5 5 4 5 4 4 12 2 8 3 5 7 Device 17 | . 13 11 5 12 15 18 14 7 11 12 25 26 25 19 25 18 17 14 16 15 14 10 11 19 19 20 20 15 14 11 15 15 20 28 24 Storage 5 | . 14 14 6 8 7 7 7 8 7 6 6 6 6 6 6 5 5 5 5 5 5 5 5 5 5 5 5 4 4 4 4 4 3 3 3 Processor 2 | . . . . . 3 . . 9 15 5 . . . . . . . . . . . . . . . . . 2 3 . . . . 10 19 Hackware 10 | . . . . 12 8 7 7 7 7 25 10 . . . . 20 23 23 23 22 22 22 19 10 10 10 10 24 27 23 21 20 17 1 . Protection 4 | . . 2 4 2 9 11 15 13 3 1 1 6 6 12 6 . 4 2 . . 3 5 3 5 5 5 5 2 2 7 6 7 7 4 4 Energy Gun 3 | . 11 . . 1 15 20 22 10 7 8 . . . . . . . . . . . . . . . . . 4 3 . 8 . . . . Energy Cannon 8 | . . . 24 . . . . . . 8 19 19 18 15 18 15 . 14 16 16 11 18 23 25 25 2 23 . . 4 2 4 3 1 2 Ballistic Gun 2 | . 12 . 1 11 . . . . . . . . . . . . . . . . . . . . . . . . . . . . . . . Ballistic Cannon 2 | . 3 25 . 1 . . . 3 4 . . . . . . 1 19 2 . . . . . . . . . . 2 12 3 9 9 8 7 Special Weapon 1 | . . 1 1 4 1 . . . . . . . . . . . . . . . 2 . . . . . . . . . . . . . . Slashing Weapon 1 | . . . . . . . . 1 3 . . . . 2 . 4 . 4 4 4 7 2 4 4 5 4 3 3 3 3 3 3 3 . . Naked Turns 6 | . . . . . . . . . . . . . . . . . . . . . . . . . . . . . . . . . . . 6 Heaviest Build 361 | 13 32 39 225 236 254 252 252 313 250 275 294 294 300 300 296 298 275 288 278 294 303 310 325 342 330 335 342 316 361 208 220 230 248 303 278 Greatest Support 140 | 40 40 40 40 40 32 28 28 28 28 28 28 28 28 28 28 28 28 28 28 28 28 28 28 28 28 28 28 28 64 64 140 110 46 78 78 Greatest Overweight (x) 21 | . . . 21 21 15 8 8 11 8 9 10 10 10 10 10 10 9 10 9 10 10 11 11 12 11 11 12 11 12 6 12 7 5 6 6 Average Overweight (x) 5 | . . . 2 3 7 8 8 6 8 8 9 10 9 9 10 9 9 9 9 9 8 10 10 11 11 9 11 9 5 3 2 5 4 4 3 Largest Inventory Capacity 35 | 8 15 15 35 35 35 35 35 35 35 35 35 35 35 35 35 35 35 35 35 35 35 35 35 35 35 35 35 35 35 25 25 25 25 25 25 Average Capacity 27 | 7 11 15 14 19 35 35 35 30 35 35 35 35 35 35 35 35 35 35 35 35 35 35 34 35 35 35 35 35 26 25 25 25 25 25 24 Most Carried 35 | 4 15 15 35 35 35 35 35 35 35 35 35 35 35 35 35 35 35 35 35 35 35 35 35 35 35 35 35 34 35 25 25 25 25 25 25 Average Carried 25 | 3 10 14 9 16 34 34 34 28 34 34 34 35 34 34 33 34 35 34 34 34 34 35 34 34 35 31 34 33 26 24 23 24 23 23 23 Final Capacity 35 | 8 15 15 35 35 35 35 35 35 35 35 35 35 35 35 35 35 35 35 35 35 35 35 35 35 35 35 35 35 25 25 25 25 25 25 5 Final Carried 35 | 4 15 15 33 35 35 35 35 35 35 35 35 35 35 35 35 35 35 35 35 35 35 35 34 35 35 35 34 33 25 25 25 25 25 25 5 Class Distribution -------------------- 14% | Hauler-Tank 12% | Wizard-Tank 10% | Hauler-Mutant 9% | Hacker-Gunner 9% | Scavenger-Executioner 6% | Hacker-Mutant 6% | Scavenger-Gunner 5% | Subdweller-Mutant 5% | Hauler-Executioner 4% | Hacker-Tank 3% | Mutant 3% | Hauler-Gunner 3% | Wizard-Executioner Dominant Class ---------------- Mutant | -10/Materials Mutant | -10/Mines Subdweller-Mutant | -10/Subcaves Hacker-Mutant | -8/Materials Hauler-Mutant | -7/Factory Hauler-Tank | -7/Lower Caves Hauler-Tank | -7/Lower Caves Mutant | -7/Data Miner Hauler-Mutant | -6/Proximity Caves Hacker-Gunner | -6/Factory Hauler-Gunner | -6/Lower Caves Hauler-Tank | -6/Lower Caves Hauler-Tank | -6/Zion Hauler-Tank | -6/Deep Caves Hauler-Tank | -5/Proximity Caves Hacker-Gunner | -5/Factory Hacker-Tank | -5/Waste Hacker-Gunner | -5/Factory Hacker-Gunner | -5/Upper Caves Hacker-Gunner | -5/Upper Caves Hacker-Tank | -5/Warlord Hacker-Tank | -4/Proximity Caves Hacker-Executioner | -4/Factory Hauler-Executioner | -4/Upper Caves Hauler-Executioner | -4/Upper Caves Hauler-Mutant | -4/Zhirov Hauler-Executioner | -3/Proximity Caves Wizard-Executioner | -3/Research Wizard-Executioner | -3/Testing Wizard-Executioner | -2/Research Wizard-Tank | -2/Quarantine Wizard-Tank | -2/Section 7 Wizard-Tank | -1/Access Scavenger-Executioner | -1/Command Scavenger-Executioner | -1/Access_0 Resources | -11 -10 -10 -10 -8 -7 -7 -7 -7 -6 -6 -6 -6 -6 -6 -5 -5 -5 -5 -5 -5 -5 -4 -4 -4 -4 -4 -3 -3 -3 -2 -2 -2 -1 -1 -1 ----------- Run | Yrd Mat Min Sub Mat Fac Low Low Dat Pro Fac Low Low Zio Dee Pro Fac Was Fac Upp Upp War Pro Fac Upp Upp Zhi Pro Res Tes Res Qua Sec Acc Com Ac0 Matter Collected 57607 | 294 339 418 1138 5733 1261 346 223 167 536 891 382 60 100 875 245 670 806 1162 325 385 220 175 724 338 292 322 635 594 1539 1540 3707 5025 684 22171 3285 Remotely 17971 | . . . . . 30 120 . . 94 149 . . . . . 478 221 532 . . 210 90 . . . . . 161 149 602 561 395 . 13380 799 Salvage Created 50817 | 109 545 402 634 3667 1817 769 118 355 309 899 224 . . 382 87 769 1303 2149 155 309 . 326 1335 218 270 322 554 2335 1889 588 1906 4159 1268 19198 1447 Parts 1802 | 9 32 19 33 117 76 12 8 7 24 53 5 . . 30 6 51 6 84 4 15 . 5 57 6 8 4 10 90 87 31 93 124 53 560 83 Haulers Intercepted 16 | . 2 . . 6 2 . . . . . . . . . . . . 2 . . . . . . . . 1 . . 1 . 1 1 . . Recyclers Shooed 18 | . . . . 7 . . . . . 2 . . . . . 2 . . . . . . 1 . 1 . . 1 . 1 . . 2 1 . Parts Field Recycled 490 | . . . 96 394 . . . . . . . . . . . . . . . . . . . . . . . . . . . . . . . Retrieved Matter 4000 | . . . 558 3442 . . . . . . . . . . . . . . . . . . . . . . . . . . . . . . . Parts Self-Destructed 201 | . . . 5 . . 6 7 . 16 . 8 26 2 . 27 . . . 9 16 . 4 . 20 39 2 14 . . . . . . . . Prevented 18 | . . . . . . 3 . . . . . . . . . . . . 4 . . . . 9 2 . . . . . . . . . . Kills | -11 -10 -10 -10 -8 -7 -7 -7 -7 -6 -6 -6 -6 -6 -6 -5 -5 -5 -5 -5 -5 -5 -4 -4 -4 -4 -4 -3 -3 -3 -2 -2 -2 -1 -1 -1 ------- Run | Yrd Mat Min Sub Mat Fac Low Low Dat Pro Fac Low Low Zio Dee Pro Fac Was Fac Upp Upp War Pro Fac Upp Upp Zhi Pro Res Tes Res Qua Sec Acc Com Ac0 Combat Hostiles Destroyed 914 | . 7 7 15 36 31 12 7 4 8 18 . . . 6 2 18 5 25 4 10 . 6 21 5 1 . 14 21 22 6 27 61 22 473 20 Melee 2 | . . . . . . . . . . . . . . . . . . . . . . . . . . . . . 1 . . 1 . . . Guns 81 | . 4 . 4 13 27 7 . . 1 8 . . . . . . . . . . . . . . . . . . 1 . 11 . . 5 . Cannons 476 | . . 5 4 14 . . . . 1 6 . . . 1 . 10 5 19 1 2 . 3 16 2 1 . 4 1 4 5 13 25 16 298 20 AOE 282 | . 3 2 4 8 3 3 6 . 6 1 . . . 5 2 8 . 3 3 8 . 3 4 3 . . 9 17 14 1 . 1 . 165 . Classes Destroyed 36 | 2 7 1 3 5 2 1 . . 1 . . . . 1 . . 1 1 . . . . . . . . . . 2 1 2 . . 6 . Worker 35 | . 2 . . 1 5 . . . . 1 . . . . . 2 . . . . . . . . . . . 4 4 2 . 2 . 12 . Builder 37 | . . . . . 9 . . . . 2 . . . . . . . 3 . . . . . . . . . 12 5 . 1 3 2 . . Tunneler 11 | 2 . 1 . 3 . . . . . 1 . . . . . . . . . . . . 2 . . . . . . . . . 2 . . Hauler 16 | . 2 . . 6 2 . . . . . . . . . . . . 2 . . . . . . . . 1 . . 1 . 1 1 . . Recycler 57 | 1 1 2 . 24 2 . . . . . . . . . . . . 3 . . . . 3 . . . . 2 1 1 3 2 2 10 . Carrier 2 | . . . . . . . . . . . . . . . . . . . . . . . . . . . . . . . . . . 2 . Minesweeper 5 | . . . . . . 1 . . 1 . . . . . 1 . . . . 1 . . . . 1 . . . . . . . . . . Mechanic 20 | . 1 . . 1 1 . . . . . . . . . . 1 . . . . . . . . . . . . 1 . . 1 . 14 . Operator 8 | . 2 . . 1 2 . . . . . . . . . . . . . . . . . . . . . . . . 1 . 1 . 1 . Drone 3 | . . . . . . . . . . . . . . . . . . 1 . . . . . . . . . 1 . . . 1 . . . Watcher 34 | . 3 . . 5 2 . . . . 2 . . . . . . . 4 . . . . . . . . . 4 3 1 . 3 4 3 . Swarmer 90 | . 3 1 2 4 5 . 6 . 3 3 . . . . . 8 . . . 5 . . 4 . . . 6 . . . . . 4 36 . Cutter 12 | . . . . . . . . . . . . . . . . . . . . . . . . . . . . . . . . . . 12 . Saboteur 19 | . . . . . . . . . . . . . . . . . . . . . . . . . . . . . . . . . . 19 . Grunt 291 | . 4 4 . 15 15 7 . . 4 9 . . . . 2 4 . 10 2 2 . 3 6 4 . . 5 7 3 1 5 18 9 152 . Brawler 40 | . . . . 1 . 1 . . . . . . . . . . . . . 1 . 1 . . . . . . 1 . . . 1 34 . Duelist 46 | . . . . 1 1 . . . . . . . . . . . . . 1 . . . . 1 . . 1 . 1 . . 3 1 36 . Protector 20 | . . . . . . . . . . . . . . . . . . . . . . . . . . . . . . . . . . 20 . Sentry 31 | . . . 1 9 1 1 1 . . 2 . . . . . . . 2 . . . . 3 . 1 . . 3 . 1 . 5 . 1 . Demolisher 12 | . . . . . . . . . . . . . . . . . . . . . . . . . . . . . . . . . . 12 . Specialist 30 | . . . . 2 . . . . . . . . . . . . . . . . . . . . . . . . . . . 4 . 24 . Hunter 89 | . . . . 3 3 . . . . . . . . . . 2 . 4 1 2 . 2 . . . . 2 4 4 . . 9 . 53 . Programmer 118 | . . . . . 6 . . . . 4 . . . . . 4 . 8 . . . . 8 . . . . 7 12 3 3 10 5 48 . Heavy 4 | . . . . 1 . . . . . . . . . . . . . 1 . . . . . . . . . . . . . 1 . 1 . Q-Series 9 | . . . . . . . . . . . . . . . . . . . . . . . . . . . . . 1 . 2 4 2 . . Behemoth 4 | . . . . . . . . . 1 . . . . . . . . . . . . . . . . . . . . . . 1 . 2 . Compactor 5 | . . . . . . . . . . . . . . . . . 5 . . . . . . . . . . . . . . . . . . Quarantine Guard 12 | . . . . . . . . . . . . . . . . . . . . . . . . . . . . . . . 12 . . . . S7 Guard 2 | . . . . . . . . . . . . . . . . . . . . . . . . . . . . . . . . 2 . . . M Guard 2 | . . . . . . . . . . . . . . . . . . . . . . . . . . . . . . . . . . 2 . Enhanced Grunt 14 | . . . . . . . . 4 . . . . . 2 . . . . . . . . . . . . . . . . . . . . 8 Enhanced Sentry 1 | . . . . . . . . . . . . . . . . . . . . . . . . . . . . . . . . . . . 1 Enhanced Hunter 8 | . . . . . . . . . . . . . . . . . . . . . . . . . . . . . . . . . . . 8 Lightning 3 | . . . . . . . . . . . . . . . . . . . . . . . . . . . . . . . 3 . . . . Investigator 2 | . . . . . . . . . . . . . . . . . . . . . . . . . . . . . 1 . . . . 1 . Striker 10 | . . . . . . . . . . . . . . . . . . . . . . . . . . . . . . . . . . 10 . Executioner 12 | . . . . . . . . . . . . . . . . . . . . . . . . . . . . . . 1 . 2 . 9 . Alpha 7 2 | . . . . . . . . . . . . . . . . . . . . . . . . . . . . . . . 1 1 . . . Fortress 1 | . . . . . . . . . . . . . . . . . . . . . . . . . . . . . . . 1 . . . . Cobbler 1 | . . . 1 . . . . . . . . . . . . . . . . . . . . . . . . . . . . . . . . Subdweller 12 | . . . 12 . . . . . . . . . . . . . . . . . . . . . . . . . . . . . . . . Z-Light 3 | . . . . . . . . . . . . . . 3 . . . . . . . . . . . . . . . . . . . . . Packrat 5 | . . . . . . 1 . . . . . . . . . . . . . . . . . . 2 . 2 . . . . . . . . Assembled 5 | . . 2 . . . . . . . . . . . 3 . . . . . . . . . . . . . . . . . . . . . Thug 2 | . . 1 . . . . . . . . . . . . . . 1 . . . . . . . . . . . . . . . . . . Savage 3 | . . . . . . 3 . . . . . . . . . . . . . . . . . . . . . . . . . . . . . Best Kill Streak 78 | 3 3 2 2 8 11 3 3 2 3 6 . . . 2 2 5 1 12 3 5 . 4 5 3 1 . 4 9 7 2 4 7 7 78 3 Combat Bots Only 78 | . 2 1 2 7 5 3 3 2 3 4 . . . 2 2 5 1 6 3 5 . 4 5 3 1 . 4 6 4 2 3 6 6 78 3 Max Kills in Single Turn 10 | 1 2 2 2 3 3 2 2 1 2 3 . . . 2 2 5 1 4 2 3 . 2 3 1 1 . 3 4 3 2 1 1 1 10 2 Gunslinging 1 | . . . . . 1 . . . . . . . . . . . . . . . . . . . . . . . . . . . . . . Exploded 7 | . 2 1 2 3 3 2 2 . 2 1 . . . 2 2 5 . 2 2 3 . 2 3 1 . . 3 2 2 1 . 1 . 7 . Melee 1 | . . . . . . . . . . . . . . . . . . . . . . . . . . . . . 1 . . 1 . . . Uniques/NPCs Destroyed 6 | . . . . . . . . . . . . . . 1 . . . . . . . . . . . . . . . . . . . 2 3 Z-Imprinter (-6/Deep Caves) MAIN.C Shell (-1/Command) MAIN.C (-1/Command) A8 (-1/Access_0) A6 (-1/Access_0) Architect (-1/Access_0) Combat | -11 -10 -10 -10 -8 -7 -7 -7 -7 -6 -6 -6 -6 -6 -6 -5 -5 -5 -5 -5 -5 -5 -4 -4 -4 -4 -4 -3 -3 -3 -2 -2 -2 -1 -1 -1 -------- Run | Yrd Mat Min Sub Mat Fac Low Low Dat Pro Fac Low Low Zio Dee Pro Fac Was Fac Upp Upp War Pro Fac Upp Upp Zhi Pro Res Tes Res Qua Sec Acc Com Ac0 Hostile Shots Fired 4374 | . 33 17 43 229 135 49 34 15 24 128 . 2 . . 9 26 1 80 9 23 2 44 73 7 10 . 54 101 197 36 406 650 104 1445 388 Missed 1281 | . 8 7 13 54 37 21 10 6 13 47 . 2 . . 5 12 . 24 . 6 1 11 26 2 3 . 18 44 60 9 87 178 25 389 163 Intercepted 4 | . . . . . . . . . . . . . . . . . . . . . . . . . . . . . . . . . . 4 . Damage Taken 37808 | . 301 121 660 3164 1297 460 210 422 38 1270 . . . 27 121 381 38 1543 127 215 34 748 996 78 67 . 443 1491 2695 680 3756 4145 323 8562 3395 Core 3293 | . 30 34 117 301 91 23 5 50 . 139 . . . . 32 39 . 102 . 29 34 38 56 . 8 . 10 118 377 86 150 889 32 302 201 Absorbed by Shields 21307 | . . . . . . . . . . . . . . . . . . . . . . . 9 20 67 . 290 485 698 30 3442 3528 530 8916 3292 Reduced by Siege Mode 1446 | . . . . . . . . . . . . . . . . . . . . . . . . . . . . . . 58 335 135 21 808 89 Redirected to Shielding 741 | . . . . . 88 . . . . 14 . . . . . . . 38 . . . . . . . . . . 59 44 60 109 3 148 178 Ignored by Resistances 18399 | . . . . 48 53 14 13 . . 21 . . . . . . . . . . . . . . . . . 108 9 46 1610 3877 1286 11314 . Regen/Repaired (Parts) 12235 | . 100 . . 330 229 . . . . 68 . . . . . 203 . 63 . . 28 . 507 . . . . . 492 . 1744 2172 370 5250 679 Core Remaining (%) 60 | 100 . . 27 45 . . . . 75 . . . . . 79 . . . . . . 75 . . . . 93 . 61 . . 9 . . 39 Volleys Fired 2151 | 8 49 63 186 115 66 25 8 . 13 67 34 . . 36 16 29 23 64 8 12 2 9 37 8 2 . 21 31 76 21 111 230 89 579 113 Largest 5 | 2 2 2 2 3 3 3 3 . 3 3 1 . . 3 3 3 4 3 3 3 1 4 5 5 5 . 5 1 3 3 4 4 2 3 3 Hottest 495 | 70 100 103 160 228 240 202 202 . 240 270 90 . . 270 270 270 264 270 270 285 105 328 495 495 495 . 495 300 300 210 354 160 140 360 360 Shots Fired 3847 | 16 88 85 216 292 163 63 14 . 16 142 34 . . 38 26 73 79 160 12 18 2 20 115 16 11 . 50 32 87 41 358 307 92 1041 140 Gun 889 | 16 82 . 12 151 150 57 9 . 3 63 . . . . . . . . . . . . . . . . . 26 34 . 174 . 9 103 . Cannon 2742 | . . 53 149 121 9 2 . . 6 79 34 . . 5 21 71 79 160 9 12 2 17 112 12 11 . 39 6 45 40 184 307 83 934 140 Launcher 77 | . 4 3 11 6 1 4 5 . 7 . . . . 5 5 2 . . 3 6 . 1 . 4 . . 8 . . 1 . . . 1 . Special 139 | . 2 29 44 14 3 . . . . . . . . 28 . . . . . . . 2 3 . . . 3 . 8 . . . . 3 . Kinetic 1484 | 8 43 41 21 217 3 . . . 6 . . . . . . . 79 9 . . . . . . . . . . 12 36 136 87 2 722 62 Thermal 2117 | 8 41 41 191 73 159 59 9 . 3 142 34 . . 33 21 71 . 151 9 12 2 17 112 12 11 . 39 32 75 4 220 108 81 269 78 Explosive 73 | . 4 3 4 2 1 4 5 . 7 . . . . 5 5 2 . . 3 6 . 3 3 4 . . 11 . . 1 . . . . . Electromagnetic 169 | . . . . . . . . . . . . . . . . . . . . . . . . . . . . . . . 2 112 9 46 . Robot Hit Streak 65 | 6 9 11 33 14 19 19 13 . 8 16 7 . . 10 2 13 22 8 4 6 . 13 11 14 22 . 24 12 17 11 55 48 13 65 30 Robot Miss Streak 8 | 1 3 3 2 3 7 4 1 . 2 4 1 . . 2 1 2 1 2 1 1 . 2 5 . . . 3 8 5 2 2 3 3 6 4 Penetration Max 1 | . . . . 1 . . . . . . . . . . . . . 1 . . . . . . . . . . . . . 1 . 1 1 Secondary Targets 143 | . . . . . 4 2 . . . 1 . . . . . . . . . . . . . . . . . . . . 1 . . 135 . Max Gunslinging Chain 2 | . . . . . 1 1 . . . 1 . . . . . . . . . . . . . . . . . . . . 1 . . 2 . Capacitor 160 | . . . . . . . . . . . . . . . . . . . . . . . . . . . . . . . . . 43 117 . Shots Hit Robots 2702 | 11 60 24 67 240 134 46 9 16 6 89 10 . . 34 7 52 60 85 4 10 . 15 64 5 13 6 18 33 89 38 300 230 69 746 112 Core Hits 3106 | 4 29 17 33 91 111 31 12 . 18 60 5 . . 21 11 29 10 49 9 17 . 12 29 16 5 3 28 99 97 11 98 73 21 1946 111 Critical Kills 52 | . . . 3 4 2 . . . . 1 . . . . . . 6 4 . . . . 1 . . . 1 . . . 4 5 4 2 15 Critical Parts Destroyed 40 | . . . . 7 3 . . 1 . . . . . . . . 6 1 . . . . . . . . . . . . 1 . . . 21 Critical Strikes 313 | . . . 3 17 6 4 1 1 . 1 . . . 2 . . 43 5 . . . . 2 . . . 1 . 8 1 14 23 4 134 43 Burn 13 | . . . . 1 1 4 1 . . . . . . . . . . . . . . . . . . . . . . . . . . 6 . Meltdown 23 | . . . 3 1 . . . . . 1 . . . . . . . 2 . . . . 1 . . . 1 . . . 3 5 4 2 . Destroy 90 | . . . . 2 . . . . . . . . . . . . 43 3 . . . . . . . . . . . . 2 . . . 40 Blast 147 | . . . . 3 . . . . . . . . . . . . . . . . . . . . . . . . 2 1 9 3 . 126 3 Corrupt 15 | . . . . . . . . . . . . . . . . . . . . . . . . . . . . . . . . 15 . . . Smash 14 | . . . . 8 5 . . 1 . . . . . . . . . . . . . . . . . . . . . . . . . . . Sever 11 | . . . . 2 . . . . . . . . . 2 . . . . . . . . 1 . . . . . 6 . . . . . . Melee Attacks 640 | . . . . 53 62 12 . 40 11 20 . . 1 13 2 47 . 34 5 9 4 4 17 2 5 13 3 29 77 16 45 48 31 37 . Impact 146 | . . . . 32 62 6 . 20 5 20 . . 1 . . . . . . . . . . . . . . . . . . . . . . Slashing 466 | . . . . 21 . 6 . 20 6 . . . . 13 2 47 . 34 5 9 4 4 17 2 5 13 3 29 77 12 21 48 31 37 . Piercing 28 | . . . . . . . . . . . . . . . . . . . . . . . . . . . . . . 4 24 . . . . Sneak Attacks 132 | . . . . 42 11 2 . 1 1 1 . . . 11 1 5 . 2 . 2 . . 6 . 4 . . 5 11 6 5 6 5 5 . Combat Hostiles . | . . . . . . . . . . . . . . . . . . . . . . . . . . . . . . . . . . . . Follow-up Attacks 2 | . . . . 2 . . . . . . . . . . . . . . . . . . . . . . . . . . . . . . . Damage Inflicted 204598 | 135 1174 699 2063 8049 4588 1907 662 806 754 2785 348 . . 1542 716 2729 1203 4418 463 1260 . 1387 3862 860 599 484 3489 6318 9349 3026 10547 14798 6789 98422 8367 Guns 16075 | 135 735 . 229 1634 3290 872 146 . 75 1337 . . . . . . . . . . . . . . . . . 222 395 . 4408 . 296 2301 . Cannons 108204 | . . 493 720 1856 . . . . 106 1057 348 . . 33 140 1715 1203 2889 97 200 . 334 2419 185 294 . 623 47 1954 1682 5788 13540 5709 57148 7624 Explosions 64077 | . 439 171 982 824 181 489 516 . 505 284 . . . 623 496 661 . 1397 366 912 . 735 886 675 . . 2773 5600 4807 697 . 172 . 38143 743 Melee 15547 | . . . . 3683 1113 546 . 806 68 107 . . . 790 80 353 . 132 . 148 . 220 463 . 305 484 . 449 2147 647 351 1086 770 799 . Ramming 80 | . . 35 . . . . . . . . . . . . . . . . . . . . . . . . . . . . . . 14 31 . Kinetic 108132 | 48 354 432 935 2957 . . . . 106 . . . . . . . 1203 81 . . . . . . . . . . 430 1135 4638 2779 42 89803 3189 Thermal 61911 | 87 458 61 814 1043 3294 872 146 . 75 2394 348 . . 129 140 1715 . 3115 97 200 . 334 2620 185 294 . 623 5869 6772 1052 5510 6163 5667 6656 5178 Explosive 12396 | . 362 171 314 366 181 489 516 . 505 284 . . . 623 496 661 . 1090 366 912 . 735 685 675 . . 2773 . . 192 . . . . . Electromagnetic 6247 | . . . . . . . . . . . . . . . . . . . . . . . . . . . . . . . 48 4770 296 1133 . Impact 4820 | . . . . 2556 1113 308 . 736 . 107 . . . . . . . . . . . . . . . . . . . . . . . . . Slashing 10661 | . . . . 1127 . 238 . 70 68 . . . . 790 80 353 . 132 . 148 . 318 557 . 305 484 93 449 2147 647 . 1086 770 799 . Piercing 351 | . . . . . . . . . . . . . . . . . . . . . . . . . . . . . . . 351 . . . . Highest Corruption 25 | . . . . 2 4 1 . . 14 2 . . . . . 1 25 25 . . . . 4 2 2 2 2 2 12 1 11 20 4 13 2 Average Corruption 4 | . . . . 1 2 1 . . 10 1 . . . . . 1 16 16 . . . . 2 2 2 2 2 1 2 1 7 5 3 4 1 Corruption Purged 79 | . . . . 2 4 1 . . . 2 . . . . . 1 . 28 . . . . 2 . . . . . . 1 17 . . 21 . Corruption Blocked 82 | . . . . . . . . . . . . . . . . . . 8 . . 1 . . . . . . 2 24 45 . . . 2 . Effects 842 | . . . . 1 37 1 . . . 24 . . . . . 1 17 124 . . . . 30 29 30 6 33 13 41 2 20 90 11 321 11 Message Errors 207 | . . . . . 11 . . . . 9 . . . . . . 5 26 . . . . 10 6 10 . 10 3 7 . 6 21 2 79 2 Matter Fused 222 | . . . . . 11 . . . . 6 . . . . . . 4 35 . . . . 9 13 9 2 7 2 10 . 4 21 6 83 . Heat Flow Errors 68 | . . . . . 3 . . . . . . . . . . 1 1 15 . . . . 1 2 4 . 3 1 3 1 2 3 . 27 1 Energy Discharges 82 | . . . . . 4 1 . . . 3 . . . . . . 2 11 . . . . 1 2 1 1 5 2 7 . 2 10 2 27 1 Parts Rejected 11 | . . . . . . . . . . . . . . . . . . 1 . . . . . . . . . . . . . 5 . 4 1 Parts Fused 15 | . . . . . . . . . . . . . . . . . . 2 . . . . . . 1 . . 1 1 . . 3 . 7 . Data Loss (minor) 100 | . . . . 1 2 . . . . 2 . . . . . . 2 16 . . . . 6 1 2 1 4 2 7 . 2 18 . 34 . Data Loss (major) 46 | . . . . . 2 . . . . 1 . . . . . . . 7 . . . . 1 3 1 1 1 1 3 1 2 3 . 18 1 Misfires 48 | . . . . . 2 . . . . 3 . . . . . . 1 4 . . . . 1 2 1 . 3 1 3 . . 3 1 19 4 Alerts 21 | . . . . . 2 . . . . . . . . . . . . 3 . . . . . . 1 1 . . . . . 2 . 12 . Misdirections 1 | . . . . . . . . . . . . . . . . . . 1 . . . . . . . . . . . . . . . . . Weapon Failures 21 | . . . . . . . . . . . . . . . . . 2 3 . . . . 1 . . . . . . . 2 1 . 11 1 Overload Shots . | . . . . . . . . . . . . . . . . . . . . . . . . . . . . . . . . . . . . Overflow Damage 11175 | . 41 18 . 1636 536 378 15 108 . 173 132 . . 65 31 143 . 290 . 27 . 39 260 10 129 229 164 334 676 744 237 1505 1239 1832 184 Projectiles 4929 | . . 18 . 27 . . . . . 49 132 . . . 6 88 . 19 . . . . 87 . . . 50 . 285 416 73 1044 956 1502 177 Explosions 1199 | . 41 . . 17 . 22 15 . . 124 . . . 1 25 23 . 237 . 3 . . 24 10 . . 114 156 166 104 . . . 110 7 Melee 5047 | . . . . 1592 536 356 . 108 . . . . . 64 . 32 . 34 . 24 . 39 149 . 129 229 . 178 225 224 164 461 283 220 . Knockbacks 326 | . . 4 . 18 4 . . 1 . 1 . . . . . . . . . . . . . . . . . . . 15 39 12 . 195 37 Impact 18 | . . 2 . 9 4 . . 1 . 1 . . . . . . . . . . . . . . . . . . . . . . . 1 . Kinetic 287 | . . 2 . 8 . . . . . . . . . . . . . . . . . . . . . . . . . 15 38 12 . 175 37 Secondary 21 | . . . . 1 . . . . . . . . . . . . . . . . . . . . . . . . . . 1 . . 19 . Self-Inflicted Damage 2554 | . 14 . 19 26 . 81 16 . . 77 . . . . 46 . . 259 . . . 69 . . . . 14 859 769 . . 51 7 230 17 Shots 109 | . 1 . 1 1 . 3 1 . . 1 . . . . 1 . . 3 . . . 1 . . . . 1 40 32 . . 1 . 21 1 Rammed 12 | . . 9 . . . . . . . . . . . . . . . . . . . . . . . . . . . . . . 2 1 . Targets Rammed 12 | . . 9 . . . . . . . . . . . . . . . . . . . . . . . . . . . . . . 2 1 . Kicked . | . . . . . . . . . . . . . . . . . . . . . . . . . . . . . . . . . . . . Crushed . | . . . . . . . . . . . . . . . . . . . . . . . . . . . . . . . . . . . . Highest Temperature 392 | 54 192 187 54 252 343 173 11 . 174 174 258 . . 84 138 207 232 267 211 102 120 185 392 152 256 . 172 330 261 122 362 379 211 385 257 Average Temperature 72 | 24 37 46 18 92 86 71 6 . 43 56 118 . . 42 47 51 67 69 80 49 63 84 111 56 96 . 81 102 64 41 100 147 60 62 61 Received Heat Transfer 4072 | . 144 42 72 927 321 162 36 . 36 423 . . . 9 9 72 . 126 . . . 112 136 22 36 . 58 67 39 . 9 673 14 512 15 Effects 6 | . . . . 3 . . . . . . . . . . . . . . . . . . 1 . . . . . . . . 1 . 1 . Energy Bleed 3 | . . . . 1 . . . . . . . . . . . . . . . . . . 1 . . . . . . . . 1 . . . Interference 3 | . . . . 2 . . . . . . . . . . . . . . . . . . . . . . . . . . . . . 1 . Siege Activations 112 | . . . . . . . . . . . . . . . . . . . . . . . . . . . . . . 1 23 32 14 34 8 Total Turns 4187 | . . . . . . . . . . . . . . . . . . . . . . . . . . . . . . 19 573 470 141 2878 106 Longest Duration 1907 | . . . . . . . . . . . . . . . . . . . . . . . . . . . . . . 19 85 49 32 1907 21 Robots Corrupted 34 | . . . . . . . . . . . . . . . . . . . . . . . . . . . . . . . . 30 1 3 . Combat Hostiles 33 | . . . . . . . . . . . . . . . . . . . . . . . . . . . . . . . . 29 1 3 . Parts Fried 99 | . . . . 16 7 . . 6 . . . . . . . . . . 3 . . . . . . . . . . 4 . 48 3 12 . Impact Corruptions 76 | . . . . 41 18 9 . 7 . . . . . . . . . . . . . . . . . . . . . . . . . 1 . Robots Melted 36 | . . . 3 1 1 2 1 . . 3 . . . . . . . 3 . . . . 1 . . . 1 3 2 . 3 5 5 2 . Combat Hostiles 36 | . . . 3 1 1 2 1 . . 3 . . . . . . . 3 . . . . 1 . . . 1 3 2 . 3 5 5 2 . Parts Melted 172 | . 2 2 9 3 15 4 2 . . 11 . . . . . 6 . 20 . 1 . . 6 . . . . 37 35 . 7 3 8 1 . Heat Transferred 60352 | 259 1160 111 1486 1829 6845 2022 372 . 150 4525 550 . . 600 200 2400 . 4200 150 274 . 74 1358 148 148 . 407 7711 6339 550 6671 3150 2775 3204 684 Parts Sabotaged 1 | . . . . . . . . . . . . . . . . . . . . . . . . . . . . . . . . . . 1 . Parts Stolen . | . . . . . . . . . . . . . . . . . . . . . . . . . . . . . . . . . . . . Parts Stripped . | . . . . . . . . . . . . . . . . . . . . . . . . . . . . . . . . . . . . Power Chain Reactions 3 | . . . . . . . . . . . . . . . . . . . . . . . . . . . . . . . . 2 . 1 . Alert | -11 -10 -10 -10 -8 -7 -7 -7 -7 -6 -6 -6 -6 -6 -6 -5 -5 -5 -5 -5 -5 -5 -4 -4 -4 -4 -4 -3 -3 -3 -2 -2 -2 -1 -1 -1 ------- Run | Yrd Mat Min Sub Mat Fac Low Low Dat Pro Fac Low Low Zio Dee Pro Fac Was Fac Upp Upp War Pro Fac Upp Upp Zhi Pro Res Tes Res Qua Sec Acc Com Ac0 Peak Influence 11697 | 15 160 198 . 287 488 . . . . 397 . . . . . 274 88 761 . . . . 285 . . . . 433 298 357 510 1051 816 11697 . Initial 621 | . 9 . . 16 100 . . . . . . . . . . . 88 . . . . . . . . . . 32 210 121 43 286 621 396 . Average 892 | 5 49 60 . 136 242 . . . . 149 . . . . . 152 80 181 . . . . 102 . . . . 234 170 117 263 458 496 4055 . Maximum Alert Level 5 | . . . . 1 2 . . . . 1 . . . . . 1 . 3 . . . . 1 . . . . 2 1 1 2 3 3 5 . Low Security (%) 51 | 100 100 100 . 91 43 . . . . 64 . . . . . 51 100 57 . . . . 90 . . . . 40 62 79 40 16 . . . Level 1 18 | . . . . 8 44 . . . . 35 . . . . . 48 . 23 . . . . 9 . . . . 56 37 20 32 35 34 4 . Level 2 8 | . . . . . 12 . . . . . . . . . . . . 18 . . . . . . . . . 2 . . 26 23 54 7 . Level 3 2 | . . . . . . . . . . . . . . . . . . 1 . . . . . . . . . . . . . 24 11 5 . Level 4 . | . . . . . . . . . . . . . . . . . . . . . . . . . . . . . . . . . . 2 . Level 5 5 | . . . . . . . . . . . . . . . . . . . . . . . . . . . . . . . . . . 26 . High Security 11 | . . . . . . . . . . . . . . . . . . . . . . . . . . . . . . . . . . 52 . Max Security . | . . . . . . . . . . . . . . . . . . . . . . . . . . . . . . . . . . . . Squads Dispatched 177 | . 3 1 . 6 20 . . . . 15 . . . . . 5 . 15 . . . . 7 . . . . 5 14 1 5 18 8 54 . Investigation 40 | . 2 . . 3 8 . . . . 9 . . . . . 1 . 6 . . . . 1 . . . . . 3 . 2 2 2 1 . Extermination 60 | . . . . . 6 . . . . 5 . . . . . 2 . 4 . . . . 5 . . . . 3 7 . 2 9 3 14 . Reinforcement 32 | . 1 . . 3 3 . . . . 1 . . . . . 2 . 5 . . . . 1 . . . . 2 3 1 1 5 1 3 . Assault 42 | . . 1 . . . . . . . . . . . . . . . . . . . . . . . . . . 1 . . 2 2 36 . Garrison 3 | . . . . . 3 . . . . . . . . . . . . . . . . . . . . . . . . . . . . . . Intercept . | . . . . . . . . . . . . . . . . . . . . . . . . . . . . . . . . . . . . Searches Triggered . | . . . . . . . . . . . . . . . . . . . . . . . . . . . . . . . . . . . . Construction Impeded 4 | . . . . . . . . . . . . . . . . . . . . . . . . . . . . 2 2 . . . . . . Haulers Reinforced 5 | . . . . . . . . . . . . . . . . 1 . 2 . . . . . . . . . . . . . 1 1 . . Active Scanning Responses . | . . . . . . . . . . . . . . . . . . . . . . . . . . . . . . . . . . . . Cargo Convoy Interrupts 1 | . . . . . . . . . . . . . . . . . . 1 . . . . . . . . . . . . . . . . . Stealth | -11 -10 -10 -10 -8 -7 -7 -7 -7 -6 -6 -6 -6 -6 -6 -5 -5 -5 -5 -5 -5 -5 -4 -4 -4 -4 -4 -3 -3 -3 -2 -2 -2 -1 -1 -1 --------- Run | Yrd Mat Min Sub Mat Fac Low Low Dat Pro Fac Low Low Zio Dee Pro Fac Was Fac Upp Upp War Pro Fac Upp Upp Zhi Pro Res Tes Res Qua Sec Acc Com Ac0 Distress Signals 39 | . . . . 3 . . . . . 1 . . . . . 2 . 2 . . . . . . . . . 4 3 8 3 3 1 9 . Communications Jammed 135 | . . . . . . . . . . . . . . . . . . . . . . . . . . . . . . . 4 63 49 19 . Distress Signals 127 | . . . . . . . . . . . . . . . . . . . . . . . . . . . . . . . 4 55 49 19 . Times Spotted 1187 | . 24 16 17 55 48 13 3 4 5 29 . 4 . 13 9 33 6 40 6 7 5 5 26 9 10 . 14 31 31 13 33 79 37 523 39 Peak Tracking Total 57 | . 3 4 3 6 5 4 3 2 3 4 . 3 . 4 4 5 2 4 3 5 5 3 5 4 3 . 5 7 5 5 5 5 7 57 4 Tactical Retreats 32 | . 1 . . 1 2 . . . . 3 . 1 . . 1 . 2 . . . . . 1 1 2 . . 1 . 1 . 6 2 7 . Traps | -11 -10 -10 -10 -8 -7 -7 -7 -7 -6 -6 -6 -6 -6 -6 -5 -5 -5 -5 -5 -5 -5 -4 -4 -4 -4 -4 -3 -3 -3 -2 -2 -2 -1 -1 -1 ------- Run | Yrd Mat Min Sub Mat Fac Low Low Dat Pro Fac Low Low Zio Dee Pro Fac Was Fac Upp Upp War Pro Fac Upp Upp Zhi Pro Res Tes Res Qua Sec Acc Com Ac0 Traps Triggered 21 | . 1 . 1 2 . . . . . . . . . . . 4 . 2 . . . . 2 . . . . . . . 2 2 . 5 . Indirectly . | . . . . . . . . . . . . . . . . . . . . . . . . . . . . . . . . . . . . Trap Hack Attempts . | . . . . . . . . . . . . . . . . . . . . . . . . . . . . . . . . . . . . Triggered . | . . . . . . . . . . . . . . . . . . . . . . . . . . . . . . . . . . . . Disarmed . | . . . . . . . . . . . . . . . . . . . . . . . . . . . . . . . . . . . . Reprogrammed . | . . . . . . . . . . . . . . . . . . . . . . . . . . . . . . . . . . . . Reused 8 | . . . . . . 4 . . 2 . . . . . 2 . . . . . . . . . . . . . . . . . . . . Traps Extracted 2 | . . . . . . . . . 2 . . . . . . . . . . . . . . . . . . . . . . . . . . Installed 12 | . . . . . . 5 . . 4 . . . . . 3 . . . . . . . . . . . . . . . . . . . . Triggered 26 | . . . . . . 1 . . 3 . 1 . . . 3 . . 2 . . 15 . . 1 . . . . . . . . . . . Most Traps Carried 6 | . . . 1 1 . 3 . . 6 4 . . . . 3 . . . . . . . . . . . . . . . . . . . . Machines | -11 -10 -10 -10 -8 -7 -7 -7 -7 -6 -6 -6 -6 -6 -6 -5 -5 -5 -5 -5 -5 -5 -4 -4 -4 -4 -4 -3 -3 -3 -2 -2 -2 -1 -1 -1 ---------- Run | Yrd Mat Min Sub Mat Fac Low Low Dat Pro Fac Low Low Zio Dee Pro Fac Was Fac Upp Upp War Pro Fac Upp Upp Zhi Pro Res Tes Res Qua Sec Acc Com Ac0 Machines Disabled 108 | . 5 1 1 2 2 . . 1 . 7 . . . 2 . 3 . 21 1 . . . 3 . . . . . 12 . 11 19 . 11 6 Max in Single Turn 4 | . 2 1 1 1 1 . . 1 . 2 . . . 1 . 1 . 4 1 . . . 2 . . . . . 1 . 1 2 . 2 1 Garrison Access 12 | . . . . 1 1 . . . . 4 . . . . . 2 . 1 . . . . . . . . . . . . 1 1 1 . . Phase Generator 1 | . . . . . . . . . . . . . . . . . . . . . . . . . . . . . . . . . . 1 . Machines Repaired 3 | . . . . . . . . . . . . . . . . . . 1 . . . . . . . . . . . . 2 . . . . Machines Dismantled 2 | . . . . 2 . . . . . . . . . . . . . . . . . . . . . . . . . . . . . . . Machines Sabotaged . | . . . . . . . . . . . . . . . . . . . . . . . . . . . . . . . . . . . . Overloaded Fab Kills . | . . . . . . . . . . . . . . . . . . . . . . . . . . . . . . . . . . . . Hacking | -11 -10 -10 -10 -8 -7 -7 -7 -7 -6 -6 -6 -6 -6 -6 -5 -5 -5 -5 -5 -5 -5 -4 -4 -4 -4 -4 -3 -3 -3 -2 -2 -2 -1 -1 -1 --------- Run | Yrd Mat Min Sub Mat Fac Low Low Dat Pro Fac Low Low Zio Dee Pro Fac Was Fac Upp Upp War Pro Fac Upp Upp Zhi Pro Res Tes Res Qua Sec Acc Com Ac0 Machines Accessed 196 | . 8 2 2 18 22 3 1 4 . 23 3 . 1 . . 12 . 15 1 . 1 . 7 . 3 6 . 3 13 2 15 14 9 8 . Terminals 106 | . 6 1 . 11 13 . . . . 13 . . . . . 7 . 8 . . . . 3 . 1 . . 2 8 2 9 11 6 5 . Fabricators 17 | . . . . . 5 . . . . 4 . . . . . 1 . 3 . . . . 1 . . . . . 2 . . . 1 . . Repair Stations 17 | . 1 . . 2 1 . . . . 1 . . . . . 2 . 1 . . . . 2 . . . . . 2 . 2 . 1 2 . Recycling Units 7 | . 1 . . 2 1 . . . . 1 . . . . . . . 1 . . . . . . . . . . . . . . . 1 . Scanalyzers 12 | . . . . 2 1 . . . . . . . . . . . . 1 . . . . 1 . . . . 1 1 . 3 2 . . . Garrison Access 12 | . . . . 1 1 . . . . 4 . . . . . 2 . 1 . . . . . . . . . . . . 1 1 1 . . Total Hacks 729 | . 23 3 12 92 58 4 1 27 . 88 6 . 4 . . 52 . 57 1 . 1 . 26 . 6 19 . 11 57 12 71 50 27 21 . Successful 511 | . 13 2 12 74 33 4 1 27 . 59 6 . 4 . . 34 . 37 1 . 1 . 21 . 6 19 . 7 44 2 47 31 15 11 . Failed 214 | . 10 1 . 17 25 . . . . 29 . . . . . 17 . 20 . . . . 5 . . . . 4 12 10 23 19 12 10 . Catastrophic 26 | . 1 . . 3 2 . . . . 5 . . . . . . . 1 . . . . . . . . . . 1 4 1 2 3 3 . Database Lockouts 4 | . . . . 1 . . . . . . . . . . . 1 . . . . . . . . . . . . 1 . 1 . . . . Manual 325 | . 17 . . 46 29 . . . . 56 . . 5 . . 20 . 32 . . 1 . 6 . . . . 8 21 12 31 24 8 9 . Terminals 395 | . 19 2 . 42 22 . . . . 53 . . . . . 37 . 34 . . . . 11 . 1 . . 8 38 12 43 42 20 11 . Fabricators 77 | . . . . . 18 . . . . 22 . . . . . 7 . 12 . . . . 6 . . . . . 9 . . . 3 . . Repair Stations 70 | . 3 . . 14 7 . . . . 2 . . . . . 5 . 2 . . . . 6 . . . . . 9 . 12 . 3 7 . Recycling Units 32 | . 1 . . 12 8 . . . . 4 . . . . . . . 4 . . . . . . . . . . . . . . . 3 . Scanalyzers 54 | . . . . 21 2 . . . . . . . . . . . . 3 . . . . 3 . . . . 3 1 . 14 7 . . . Garrison Access 20 | . . . . 3 1 . . . . 7 . . . . . 3 . 2 . . . . . . . . . . . . 2 1 1 . . Terminal Hacks 256 | . 5 2 12 22 5 4 1 27 . 22 6 . 4 . . 18 . 15 1 . 1 . 5 . 6 19 . 2 24 2 19 22 9 3 . Record 43 | . 1 . 11 . . 2 . 11 . . 4 . . . . . . . . . . . . . 5 7 . . . . 2 . . . . Part Schematic 39 | . 2 . . 2 1 . . 9 . 3 . . 4 . . 2 . 2 . . . . . . . 4 . . 3 . 7 . . . . Robot Schematic 4 | . . . . . . . . 4 . . . . . . . . . . . . . . . . . . . . . . . . . . . Robot Analysis 11 | . . . . 1 . . . . . . . . . . . 1 . . . . . . . . . 4 . . 1 . 4 . . . . Prototype ID Bank 13 | . 1 . . . . . . 3 . . . . . . . 2 . . . . . . . . . 4 . . 3 . . . . . . Open Door 15 | . . 1 . . . 2 1 . . . 2 . . . . . . . 1 . 1 . . . 1 . . . . . 2 3 1 . . Level Access Points 6 | . . . . . . . . . . 1 . . . . . 1 . 1 . . . . . . . . . . 2 . . 1 . . . Branch Access Points 8 | . . . . . 1 . . . . 1 . . . . . 1 . 1 . . . . 1 . . . . 1 . 1 . . 1 . . Machine Index 8 | . . . . . . . . . . 1 . . . . . . . 1 . . . . 1 . . . . 1 2 . . 1 1 . . Terminal Index 5 | . . . . 1 1 . . . . 1 . . . . . . . . . . . . . . . . . . . . . 1 . 1 . Fabricator Index 3 | . . . . . . . . . . 1 . . . . . 1 . . . . . . 1 . . . . . . . . . . . . Repair Station Index 1 | . . . . . . . . . . . . . . . . 1 . . . . . . . . . . . . . . . . . . . Recycling Unit Index 2 | . . . . . . . . . . . . . . . . 1 . . . . . . . . . . . . 1 . . . . . . Scanalyzer Index 2 | . . . . . . . . . . . . . . . . 1 . . . . . . . . . . . . . . . 1 . . . Garrison Index 2 | . . . . . . . . . . 1 . . . . . . . . . . . . . . . . . . . 1 . . . . . Alert Level 29 | . 1 . . 11 1 . . . . 3 . . . . . 1 . 3 . . . . . . . . . . 4 . 1 2 2 . . Unreport Threat 28 | . . . . 4 1 . . . . 5 . . . . . 2 . 4 . . . . . . . . . . 3 . . 6 3 . . Locate Traps 6 | . . . . 1 . . . . . 2 . . . . . 1 . . . . . . 1 . . . . . . . 1 . . . . Maintenance Status 2 | . . . . . . . . . . . . . . . . 1 . 1 . . . . . . . . . . . . . . . . . Patrol Status 3 | . . . . . . . . . . . . . . . . 1 . 1 . . . . 1 . . . . . . . . . . . . Recall Investigation 1 | . . . . . . . . . . . . . . . . . . . . . . . . . . . . . 1 . . . . . . Recall Extermination 2 | . . . . . . . . . . . . . . . . . . . . . . . . . . . . . 1 . . 1 . . . Recall Reinforcements 1 | . . . . . . . . . . . . . . . . . . . . . . . . . . . . . 1 . . . . . . Recall Assault 1 | . . . . . . . . . . . . . . . . . . . . . . . . . . . . . . . . 1 . . . Hauler Manifests 7 | . . . . 2 . . . . . 1 . . . . . 1 . 1 . . . . . . . . . . 1 . . 1 . . . Zone Layout 11 | . . 1 . . . . . . . 2 . . . . . . . . . . . . . . . . . . 1 . 2 4 1 . . Derelict Proto ID Bank 1 | . . . 1 . . . . . . . . . . . . . . . . . . . . . . . . . . . . . . . . Disengage Seal 2 | . . . . . . . . . . . . . . . . . . . . . . . . . . . . . . . . . . 2 . Fabricator Hacks 43 | . . . . . 6 . . . . 14 . . . . . 5 . 6 . . . . 4 . . . . . 6 . . . 2 . . Network Status 5 | . . . . . 1 . . . . 2 . . . . . . . 2 . . . . . . . . . . . . . . . . . Load Schematic 23 | . . . . . 4 . . . . 8 . . . . . 2 . 3 . . . . 2 . . . . . 3 . . . 1 . . Build 15 | . . . . . 1 . . . . 4 . . . . . 3 . 1 . . . . 2 . . . . . 3 . . . 1 . . Repair Station Hacks 54 | . 2 . . 11 6 . . . . 2 . . . . . 4 . 2 . . . . 5 . . . . . 8 . 9 . 1 4 . Scan Component 30 | . 1 . . 6 3 . . . . 1 . . . . . 2 . 1 . . . . 3 . . . . . 4 . 5 . 1 3 . Repair 24 | . 1 . . 5 3 . . . . 1 . . . . . 2 . 1 . . . . 2 . . . . . 4 . 4 . . 1 . Recycling Unit Hacks 8 | . . . . 3 3 . . . . 1 . . . . . . . 1 . . . . . . . . . . . . . . . . . Report Inventory 4 | . . . . 1 1 . . . . 1 . . . . . . . 1 . . . . . . . . . . . . . . . . . Retrieve Matter 2 | . . . . 1 1 . . . . . . . . . . . . . . . . . . . . . . . . . . . . . . Retrieve Components 2 | . . . . 1 1 . . . . . . . . . . . . . . . . . . . . . . . . . . . . . . Scanalyzer 44 | . . . . 21 2 . . . . . . . . . . . . 3 . . . . 3 . . . . 3 . . 11 1 . . . Insert Component 28 | . . . . 10 1 . . . . . . . . . . . . 2 . . . . 2 . . . . 2 . . 10 1 . . . Analyze 16 | . . . . 11 1 . . . . . . . . . . . . 1 . . . . 1 . . . . 1 . . 1 . . . . Garrison Access Hacks 9 | . . . . . 1 . . . . 2 . . . . . 2 . 1 . . . . . . . . . . . . 1 1 1 . . Seal Access 9 | . . . . . 1 . . . . 2 . . . . . 2 . 1 . . . . . . . . . . . . 1 1 1 . . Unauthorized Hacks 96 | . 6 . . 17 10 . . . . 18 . . . . . 5 . 9 . . . . 4 . . . . 2 6 . 6 7 2 4 . Terminals 55 | . 5 . . 9 3 . . . . 7 . . . . . 4 . 4 . . . . 3 . . . . 2 3 . 6 6 1 2 . Track 2 | . . . . . . . . . . . . . . . . . . . . . . . 1 . . . . . 1 . . . . . . Assimilate 8 | . . . . . 1 . . . . 2 . . . . . 1 . 2 . . . . . . . . . . . . . 2 . . . Botnet 37 | . 4 . . 8 2 . . . . 4 . . . . . 3 . 2 . . . . 1 . . . . 1 1 . 6 2 1 2 . Operators 8 | . 1 . . 1 . . . . . 1 . . . . . . . . . . . . 1 . . . . 1 1 . . 2 . . . Fabricators 16 | . . . . . 3 . . . . 6 . . . . . 1 . 2 . . . . 1 . . . . . 2 . . . 1 . . Prioritize 7 | . . . . . 1 . . . . 1 . . . . . 1 . 1 . . . . 1 . . . . . 1 . . . 1 . . Haulers 2 | . . . . . 1 . . . . 1 . . . . . . . . . . . . . . . . . . . . . . . . . Recompile 7 | . . . . . 1 . . . . 4 . . . . . . . 1 . . . . . . . . . . 1 . . . . . . Repair Stations . | . . . . . . . . . . . . . . . . . . . . . . . . . . . . . . . . . . . . Recycling Units 20 | . 1 . . 7 4 . . . . 3 . . . . . . . 3 . . . . . . . . . . . . . . . 2 . Monitor 1 | . . . . . 1 . . . . . . . . . . . . . . . . . . . . . . . . . . . . . . Reject 6 | . . . . 2 1 . . . . 1 . . . . . . . 1 . . . . . . . . . . . . . . . 1 . Recyclers 4 | . . . . 1 1 . . . . 1 . . . . . . . 1 . . . . . . . . . . . . . . . . . Mask 6 | . . . . 2 1 . . . . 1 . . . . . . . 1 . . . . . . . . . . . . . . . 1 . Tunnel 3 | . 1 . . 2 . . . . . . . . . . . . . . . . . . . . . . . . . . . . . . . Scanalyzers 2 | . . . . . . . . . . . . . . . . . . . . . . . . . . . . . 1 . . 1 . . . Researchers 2 | . . . . . . . . . . . . . . . . . . . . . . . . . . . . . 1 . . 1 . . . Garrison Access 3 | . . . . 1 . . . . . 2 . . . . . . . . . . . . . . . . . . . . . . . . . Jam 3 | . . . . 1 . . . . . 2 . . . . . . . . . . . . . . . . . . . . . . . . . Data Cores Recovered 1 | . . . . . . . . . . . . . . . . . . . . . . . . . . . . . . . . 1 . . . Used . | . . . . . . . . . . . . . . . . . . . . . . . . . . . . . . . . . . . . Hacking Detections 128 | . 7 1 . 11 14 . . . . 17 . . . . . 9 . 11 . . . . 7 . . . . 3 11 2 11 11 7 6 . Full Trace Events 25 | . . . . . 6 . . . . 3 . . . . . 1 . 5 . . . . 1 . . . . . 2 . 2 2 2 1 . Feedback Events 1 | . . . . . . . . . . . . . . . . . . 1 . . . . . . . . . . . . . . . . . Corruption 1 | . . . . . . . . . . . . . . . . . . 1 . . . . . . . . . . . . . . . . . Feedback Blocked 3 | . . . . . . . . . . 2 . . . . . . . . . . . . . . . . . . . . . 1 . . . Robot Schematics Acquired 7 | . . . . . . . . 4 . . . . 3 . . . . . . . . . . . . . . . . . . . . . . Robots Built 3 | . . . . . . . . . . . . . . . . . . . . . . . 3 . . . . . . . . . . . . Authchips . | . . . . . . . . . . . . . . . . . . . . . . . . . . . . . . . . . . . . Time 93 | . . . . . . . . . . . . . . . . . . . . . . . 93 . . . . . . . . . . . . Total Robot Build Rating 21 | . . . . . . . . . . . . . . . . . . . . . . . 21 . . . . . . . . . . . . Part Schematics Acquired 69 | . 2 . . 12 2 . . 9 . 3 . . 16 . . 2 . 3 . . . . 1 . . 4 . 1 6 . 8 . . . . Parts Built 18 | . . . . . 1 . . . . 4 . . . . . 6 . 1 . . . . 1 . . . . . 4 . . . 1 . . Authchips 7 | . . . . . . . . . . 4 . . . . . 1 . . . . . . 1 . . . . . 1 . . . . . . Time 473 | . . . . . 25 . . . . 120 . . . . . 113 . 42 . . . . 42 . . . . . 112 . . . 19 . . Total Part Build Rating 114 | . . . . . 1 . . . . 24 . . . . . 40 . 6 . . . . 6 . . . . . 30 . . . 7 . . Parts Repaired 24 | . 1 . . 5 3 . . . . 1 . . . . . 2 . 1 . . . . 2 . . . . . 4 . 4 . . 1 . Time 796 | . 26 . . 194 114 . . . . 44 . . . . . 66 . 44 . . . . 35 . . . . . 177 . 84 . . 12 . Parts Recycled . | . . . . . . . . . . . . . . . . . . . . . . . . . . . . . . . . . . . . Recycled Matter . | . . . . . . . . . . . . . . . . . . . . . . . . . . . . . . . . . . . . Retrieved Matter 144 | . . . . 65 79 . . . . . . . . . . . . . . . . . . . . . . . . . . . . . . Retrieved Components 19 | . . . . 9 10 . . . . . . . . . . . . . . . . . . . . . . . . . . . . . . Parts Scanalyzed 15 | . . . . 10 1 . . . . . . . . . . . . 1 . . . . 1 . . . . 1 . . 1 . . . . Part Schematics Acquired 15 | . . . . 10 1 . . . . . . . . . . . . 1 . . . . 1 . . . . 1 . . 1 . . . . Parts Damaged 2 | . . . . 1 . . . . . . . . . . . . . . . . . . . . . . . . . . 1 . . . . Bothacking | -11 -10 -10 -10 -8 -7 -7 -7 -7 -6 -6 -6 -6 -6 -6 -5 -5 -5 -5 -5 -5 -5 -4 -4 -4 -4 -4 -3 -3 -3 -2 -2 -2 -1 -1 -1 ------------ Run | Yrd Mat Min Sub Mat Fac Low Low Dat Pro Fac Low Low Zio Dee Pro Fac Was Fac Upp Upp War Pro Fac Upp Upp Zhi Pro Res Tes Res Qua Sec Acc Com Ac0 Used RIF Installer . | . . . . . . . . . . . . . . . . . . . . . . . . . . . . . . . . . . . . Robots Hacked 1 | . . . . . . . . . . . . . . . . . . . . . . . . . . . . . . . . . . 1 . Non-combat . | . . . . . . . . . . . . . . . . . . . . . . . . . . . . . . . . . . . . Combat . | . . . . . . . . . . . . . . . . . . . . . . . . . . . . . . . . . . . . Robot Hacks Applied . | . . . . . . . . . . . . . . . . . . . . . . . . . . . . . . . . . . . . Manual 1 | . . . . . . . . . . . . . . . . . . . . . . . . . . . . . . . . . . 1 . Relay Couplers Released 4 | . . . . . . . . . . . . . . . . . . . . . . . . . . . . . . . . 4 . . . Programmers 4 | . . . . . . . . . . . . . . . . . . . . . . . . . . . . . . . . 4 . . . Fabnet Peak Effective % . | . . . . . . . . . . . . . . . . . . . . . . . . . . . . . . . . . . . . Robots Rewired . | . . . . . . . . . . . . . . . . . . . . . . . . . . . . . . . . . . . . Allies Hacked . | . . . . . . . . . . . . . . . . . . . . . . . . . . . . . . . . . . . . Hacks Repelled . | . . . . . . . . . . . . . . . . . . . . . . . . . . . . . . . . . . . . Allies | -11 -10 -10 -10 -8 -7 -7 -7 -7 -6 -6 -6 -6 -6 -6 -5 -5 -5 -5 -5 -5 -5 -4 -4 -4 -4 -4 -3 -3 -3 -2 -2 -2 -1 -1 -1 -------- Run | Yrd Mat Min Sub Mat Fac Low Low Dat Pro Fac Low Low Zio Dee Pro Fac Was Fac Upp Upp War Pro Fac Upp Upp Zhi Pro Res Tes Res Qua Sec Acc Com Ac0 Total Allies 18 | . . 3 . . 1 . . . . 1 . . 6 . . 1 1 1 . . . . 3 . . . . . . . . . . 1 . Largest Group 6 | . . 3 . . 1 . . . . 1 . . 6 6 . 1 1 1 . . . . 3 . . . . . . . . . . 1 . Highest-Rated Group 294 | . . 75 . . 10 . . . . 10 . . 294 294 . 10 31 26 . . . . 144 . . . . . . . . . . 219 . Highest-Rated Ally 219 | . . 31 . . 10 . . . . 10 . . 96 96 . 10 31 26 . . . . 48 . . . . . . . . . . 219 . Total Orders 1146 | . . . . . 62 20 14 1 42 77 16 17 2 28 56 87 . 99 57 22 40 34 43 26 47 . 16 51 87 34 26 57 53 32 . STAY 250 | . . . . . 11 3 4 . 14 18 4 2 . 6 12 12 . 24 27 3 15 14 11 1 3 . 1 8 21 3 3 11 18 1 . ROAM 14 | . . . . . . 6 . . . . . . . . 4 . . 2 . 1 . . . . . . . . . . 1 . . . . FOLLOW 143 | . . . . . 10 . 5 . 6 18 3 2 . 1 3 12 . 14 4 4 3 3 1 3 3 . 2 8 11 7 5 7 8 . . EXPLORE 129 | . . . . . . 4 . . 7 . 2 . . . 3 9 . 5 6 1 9 4 6 3 9 . 2 7 13 11 2 1 3 22 . RETURN 610 | . . . . . 41 7 5 1 15 41 7 13 2 21 34 54 . 54 20 13 13 13 25 19 32 . 11 28 42 13 15 38 24 9 . Ally Attacks 721 | . . 34 . . . . . . . . 14 49 . 86 66 93 19 112 38 16 . . 14 58 72 . 25 . . . . . . 25 . Total Damage 14924 | . . 522 . . . . . . . . 335 753 . 1749 1319 1379 317 1663 765 317 . . 501 909 1395 . 388 . . . . . . 2612 . Kills 105 | . . 10 . . . . . . . . 4 9 . 15 7 11 . 10 2 1 . . 1 6 11 . 3 . . . . . . 15 . Allies Corrupted 1 | . . . . . . . . . . . . . . . . . . . . . . . . . . . . . . . . . . 1 . Allies Melted 2 | . . . . . . . . . . . . . . . . . . . . . 1 . 1 . . . . . . . . . . . . Intel | -11 -10 -10 -10 -8 -7 -7 -7 -7 -6 -6 -6 -6 -6 -6 -5 -5 -5 -5 -5 -5 -5 -4 -4 -4 -4 -4 -3 -3 -3 -2 -2 -2 -1 -1 -1 ------- Run | Yrd Mat Min Sub Mat Fac Low Low Dat Pro Fac Low Low Zio Dee Pro Fac Was Fac Upp Upp War Pro Fac Upp Upp Zhi Pro Res Tes Res Qua Sec Acc Com Ac0 Robot Analysis Total 11 | . . . . 1 . . . . . . . . . . . 1 . . . . . . . . . 4 . . 1 . 4 . . . . Derelict Logs Recovered 20 | . . 1 1 . . . 1 . 3 . 2 2 . . 1 . . . 1 2 . 2 . 2 2 . . . . . . . . . . Drone Launches 908 | . . . . . 64 24 4 . 16 51 12 21 3 19 45 78 . 94 30 24 25 17 32 32 46 . 22 39 62 14 20 55 30 29 . Drone Recoveries 882 | . . . . . 64 24 3 1 14 51 12 21 2 20 45 78 . 91 30 22 26 16 29 32 46 . 21 36 60 14 17 54 29 24 . Exploration | -11 -10 -10 -10 -8 -7 -7 -7 -7 -6 -6 -6 -6 -6 -6 -5 -5 -5 -5 -5 -5 -5 -4 -4 -4 -4 -4 -3 -3 -3 -2 -2 -2 -1 -1 -1 ------------- Run | Yrd Mat Min Sub Mat Fac Low Low Dat Pro Fac Low Low Zio Dee Pro Fac Was Fac Upp Upp War Pro Fac Upp Upp Zhi Pro Res Tes Res Qua Sec Acc Com Ac0 Turns Passed 161567 | 120 2341 1625 13568 26606 4627 3687 2582 741 3702 3872 2732 2761 4154 5713 5416 2538 406 3476 3040 3879 1431 2461 2191 2281 3481 713 2633 1274 3385 1497 14989 4008 1486 21326 825 Spaces Moved 62837 | 51 1213 730 6779 8521 1823 1503 1116 297 1521 1444 1091 1085 1647 2143 2032 886 124 1112 1059 1482 525 716 673 818 1221 273 894 388 1267 777 6009 1338 538 9442 299 Core 12 | 2 . . . . . . . . . . . . . . . . . . . . . . . . . . . . . . . . . . 10 Treads 14691 | 49 1213 730 3783 4909 . . . . . . . . . . . . . . . . . . . . . . . . . . 3924 83 . . . Legs 7 | . . . . . . . . . . . . . . 1 . . . . . . . . . . . . . . 6 . . . . . . Wheels 48084 | . . . 2996 3612 1823 1503 1116 297 1521 1444 1091 1085 1647 2142 2032 886 124 1112 1059 1482 525 716 673 818 1221 273 894 388 1261 777 2085 1214 536 9442 289 Hover . | . . . . . . . . . . . . . . . . . . . . . . . . . . . . . . . . . . . . Flight . | . . . . . . . . . . . . . . . . . . . . . . . . . . . . . . . . . . . . Fastest Speed 50 | 50 160 160 80 100 205 220 220 145 220 205 235 250 235 235 250 235 235 235 235 235 205 250 190 265 265 220 250 235 145 130 150 150 170 130 50 Average Speed 210 | 155 160 160 164 214 211 220 220 198 220 226 237 250 249 250 250 237 235 242 235 237 233 254 261 265 265 236 270 240 187 163 221 203 177 174 159 Slowest Speed 820 | 160 160 160 560 560 325 220 220 265 220 235 250 250 250 820 250 250 235 250 235 250 250 265 265 280 265 265 280 265 400 210 340 250 190 210 210 Overloaded Moves . | . . . . . . . . . . . . . . . . . . . . . . . . . . . . . . . . . . . . Propulsion Burnouts . | . . . . . . . . . . . . . . . . . . . . . . . . . . . . . . . . . . . . Robots Hopped . | . . . . . . . . . . . . . . . . . . . . . . . . . . . . . . . . . . . . Cave-ins Triggered . | . . . . . . . . . . . . . . . . . . . . . . . . . . . . . . . . . . . . Teleports 4 | . . . . . . . . . . . . . . . . . . . . . . . . . . . . . . . . 2 . 1 1 Spacefolds 16 | . . . . . . . . . . . . . . . . . . . . . . . . . . . . . . . . 15 1 . . Exploration Rate (%) 72 | 4 98 101 98 100 53 97 93 80 94 44 96 96 88 86 96 25 76 33 99 84 96 81 18 92 99 62 80 13 94 41 99 71 19 96 24 Regions Visited 35 Branch Regions 24 Pre-discovered Areas 12 | . 1 1 1 2 . . 1 1 . . 1 . . . . . . . . . . 1 . . . 3 . . . . . . . . . Known Exits Taken 21 | . . . . . 1 1 . 1 1 1 1 1 1 . 1 . . 1 . 1 . 1 1 1 1 . 1 1 1 1 . 1 1 . . Unknown Exits Taken 12 | 1 1 1 1 1 . . 1 . . . . . . 1 . . . . 1 . 1 . . . . 1 . . . . 1 . . 1 . Scrap Searched 71 | . . 1 19 . . 5 4 . 3 . 10 3 3 . 3 . . . 4 4 . . . 5 2 . 5 . . . . . . . . Spaces Dug 937 | . . 4 13 25 59 24 . 1 26 42 22 . . 29 26 49 . 44 22 56 4 3 21 30 . 7 50 21 28 18 27 66 34 182 4 Terrain Destroyed 2658 | . 26 21 77 102 60 76 53 1 108 102 23 . . 71 77 63 3 187 30 99 4 39 132 92 3 7 211 21 34 43 53 106 48 605 81 Melee 337 | . . . . 1 49 4 . 1 10 18 . . . 2 1 31 . 30 4 7 2 1 11 2 . 7 3 16 20 5 20 35 26 31 . Projectile 964 | . . 7 5 16 5 . . . 6 38 23 . . 3 16 19 3 44 6 6 2 8 47 6 3 . 20 5 12 6 33 59 22 483 61 AOE 1337 | . 26 14 72 85 6 72 53 . 92 46 . . . 66 60 13 . 113 20 86 . 30 74 84 . . 188 . 2 32 . 12 . 91 . Terrain Rammed . | . . . . . . . . . . . . . . . . . . . . . . . . . . . . . . . . . . . . Walls Destroyed . | . . . . . . . . . . . . . . . . . . . . . . . . . . . . . . . . . . . . Machines Disabled . | . . . . . . . . . . . . . . . . . . . . . . . . . . . . . . . . . . . . Actions | -11 -10 -10 -10 -8 -7 -7 -7 -7 -6 -6 -6 -6 -6 -6 -5 -5 -5 -5 -5 -5 -5 -4 -4 -4 -4 -4 -3 -3 -3 -2 -2 -2 -1 -1 -1 --------- Run | Yrd Mat Min Sub Mat Fac Low Low Dat Pro Fac Low Low Zio Dee Pro Fac Was Fac Upp Upp War Pro Fac Upp Upp Zhi Pro Res Tes Res Qua Sec Acc Com Ac0 Total 88186 | 72 1521 1030 8963 16582 2342 1811 1228 432 1836 1872 1194 1133 1688 2455 2338 1201 178 1707 1593 1804 734 1326 996 911 1447 336 1064 625 2086 948 7403 2246 948 13578 558 Wait 17991 | 3 213 200 1597 7224 228 215 79 45 224 210 54 45 9 119 251 146 12 365 478 257 126 584 163 60 197 . 75 129 429 30 854 369 228 2748 25 Move 62775 | 50 1212 729 6778 8520 1822 1502 1115 296 1520 1443 1090 1084 1646 2142 2031 886 123 1111 1058 1481 524 715 672 817 1220 272 893 387 1266 776 6008 1311 536 9441 298 Hop . | . . . . . . . . . . . . . . . . . . . . . . . . . . . . . . . . . . . . Pick Up 897 | 4 18 1 148 184 23 10 5 16 8 24 3 . 8 29 9 15 1 16 6 6 16 . 14 2 . 12 11 4 28 10 83 33 8 130 12 Fast Attach 468 | 7 3 3 31 47 5 2 . 1 2 5 . . 5 30 . 4 1 6 8 4 12 . 11 2 2 8 7 1 35 26 44 32 6 106 12 Attach 334 | . 3 . 6 64 11 1 4 7 6 13 1 . 2 5 1 8 . 10 2 5 4 . 12 . . 4 5 4 12 4 23 23 5 64 25 Detach 240 | . 2 . 9 39 6 . . 4 3 5 . . 1 5 . 2 . 6 3 2 4 . 10 . . 5 3 . 11 6 19 18 3 56 18 Swap 1279 | . 11 20 32 48 89 27 11 7 35 63 8 4 3 17 16 52 16 68 12 21 8 14 41 17 19 3 32 40 76 22 95 134 31 152 35 Drop 1236 | . 10 5 167 253 21 12 6 16 10 15 3 . 13 59 9 12 2 15 13 7 34 . 18 3 2 19 14 . 57 36 116 48 9 212 20 Fire 2151 | 8 49 63 186 115 66 25 8 . 13 67 34 . . 36 16 29 23 64 8 12 2 9 37 8 2 . 21 31 76 21 111 230 89 579 113 Melee 638 | . . . . 51 62 12 . 40 11 20 . . 1 13 2 47 . 34 5 9 4 4 17 2 5 13 3 29 77 16 45 48 31 37 . Ram 2 | . . . . . . . . . . . . . . . . . . . . . . . . . . . . . . . . . 2 . . Kick . | . . . . . . . . . . . . . . . . . . . . . . . . . . . . . . . . . . . . Crush 10 | . . 9 . . . . . . . . . . . . . . . . . . . . . . . . . . . . . . . 1 . Escape Stasis 78 | . . . . . . . . . . . . . . . . . . 8 . . . . . . . . . . 19 . . . . 51 . Rewire 2 | . . . . . . . . . . . 1 . . . . . . . . . . . . . . . . . . . . . . 1 . Trap 12 | . . . . . . 5 . . 4 . . . . . 3 . . . . . . . . . . . . . . . . . . . . Miscellaneous 73 | . . . 9 37 9 . . . . 7 . . . . . . . 4 . . . . 1 . . . . . . 1 5 . . . . Route ------- -11/Scrapyard -10/Materials (discovered 5 exits: [*Mat x2] / *Min x2 / *Sub) -10/Mines (discovered 3 exits: [*Mat x2] / *Sub) -10/Subcaves (discovered 3 exits: *Mat x2 / [Rec]) -8/Materials (discovered 3 exits: *Fac x3) -7/Factory (discovered 3 exits: *Fac / *Low x2) -7/Lower Caves -7/Lower Caves (discovered 2 exits: *Fac / *Dat) -7/Data Miner -6/Proximity Caves -6/Factory (discovered 6 exits: *Fac x4 / *Low x2) -6/Lower Caves -6/Lower Caves (discovered 2 exits: *Fac / *Zio) -6/Zion (discovered 2 exits: *Dee / [*Pro]) -6/Deep Caves -5/Proximity Caves -5/Factory (discovered 8 exits: Fac x4 / *Upp x2 / Ext x2) -5/Waste -5/Factory (discovered 8 exits: Fac x4 / *Upp x2 / Ext x2) -5/Upper Caves -5/Upper Caves (discovered 2 exits: *Fac / *War) -5/Warlord -4/Proximity Caves -4/Factory (discovered 4 exits: *Res / *Upp x2 / Arm) -4/Upper Caves -4/Upper Caves (discovered 2 exits: *Res / *Zhi) -4/Zhirov -3/Proximity Caves -3/Research (discovered 3 exits: Res / *Tes x2) -3/Testing -2/Research (discovered 2 exits: *Qua x2) -2/Quarantine (discovered 2 exits: *Acc / *Sec) -2/Section 7 -1/Access -1/Command (discovered 3 exits: [*Sur x2] / [*Ac0]) -1/Access_0 Near Former Tau Ceti IV History --------- Turn | Location | Event 18 | -11/Scrapyard | Discovered new exit (range 16) 121 | -11/Scrapyard | Entered Materials 312 | -10/Materials | Build established: Mutant 738 | -10/Materials | Discovered new exit (range 6) 924 | -10/Materials | Discovered new exit (range 12) 1028 | -10/Materials | Discovered new exit (range 15) 1202 | -10/Materials | Discovered new exit (range 13) 1829 | -10/Materials | Repaired Lgt. Treads 1965 | -10/Materials | Discovered new exit (range 9) 2462 | -10/Materials | Entered Mines 2574 | -10/Mines | Found the Drone Emporium 2581 | -10/Mines | Found Prototype Device 2581 | -10/Mines | Identified Sensor Drone Bay 2634 | -10/Mines | Discovered new exit (range 9) 2932 | -10/Mines | Discovered new exit (range 7) 3004 | -10/Mines | Met a Derelict testing a Signal Generator 3303 | -10/Mines | Excavation squad dispatched 3303 | -10/Mines | A large section of the Mines collapsed 4079 | -10/Mines | Discovered new exit (range 6) 4087 | -10/Mines | Entered Subcaves 4087 | -10/Subcaves | Discovered new exit (range 12) 4097 | -10/Subcaves | A swath of the cavern ceiling suddenly collapsed 4382 | -10/Subcaves | Discovered new exit (range 15) 4793 | -10/Subcaves | Discovered new exit (range 10) 4884 | -10/Subcaves | Learned 2 Materials zone layouts 4893 | -10/Subcaves | Build established: Subdweller-Mutant 5120 | -10/Subcaves | Ambushed by Subdwellers from Twisted Machinery 5122 | -10/Subcaves | Core integrity fell below 50% 5271 | -10/Subcaves | Shifting Twisted Machinery released Sub. Laser 5309 | -10/Subcaves | Shifting Twisted Machinery released Battle Cannon 5697 | -10/Subcaves | Shifting Twisted Machinery released Sub. Beam Cannon 6078 | -10/Subcaves | Visited 4L-MR0's lab 6267 | -10/Subcaves | Visited Clippyterm 6366 | -10/Subcaves | Learned location of Zion (-6) 6366 | -10/Subcaves | Met a Zionite searching for "candidates" 6408 | -10/Subcaves | Shifting Twisted Machinery released Mak. Thermal Plating 6989 | -10/Subcaves | Shifting Twisted Machinery released Sub. Beam Cannon 7077 | -10/Subcaves | Disturbed a concealed Subdweller 10821 | -10/Subcaves | Build established: Mutant 12560 | -10/Subcaves | Build established: Subdweller-Mutant 13517 | -10/Subcaves | Build established: Hauler-Mutant 14676 | -10/Subcaves | Build established: Subdweller-Mutant 16773 | -10/Subcaves | Build established: Hauler-Mutant 16969 | -10/Subcaves | Found Power Bank 17655 | -10/Subcaves | Entered Materials 17655 | -8/Materials | Evolved 4 slots: Utility x3, Weapon x1 17945 | -8/Materials | Build established: Hauler-Tank 18407 | -8/Materials | Discovered new exit (range 16) 18785 | -8/Materials | Lost 12 parts (1p2n4u5w) 18789 | -8/Materials | Destroyed 7 combat bots 18865 | -8/Materials | Found Prototype Device 19218 | -8/Materials | Build established: Hauler-Mutant 19618 | -8/Materials | Build established: Hauler-Gunner 21043 | -8/Materials | Build established: Scavenger-Tank 21137 | -8/Materials | Lost 6 parts (3n2u1w) 21336 | -8/Materials | Discovered new exit (range 11) 21709 | -8/Materials | Core integrity fell below 50% 22459 | -8/Materials | Discovered new exit (range 16) 23125 | -8/Materials | Build established: Scavenger-Gunner 30621 | -8/Materials | Build established: Hacker-Gunner 31794 | -8/Materials | Build established: Hacker-Mutant 35857 | -8/Materials | Repaired Hvy. Assault Cannon 35955 | -8/Materials | Repaired Imp. Cooling System 36465 | -8/Materials | Repaired Mak. System Restoration Module 36492 | -8/Materials | Repaired Humpback 36885 | -8/Materials | Repaired Broken Imp. Cooling System 37197 | -8/Materials | Build established: Hauler-Mutant 38982 | -8/Materials | Build established: Hacker-Mutant 42931 | -8/Materials | Build established: Hauler-Gunner 43172 | -8/Materials | Central database locked down 43453 | -8/Materials | Build established: Hauler-Mutant 44261 | -8/Materials | Entered Factory 44261 | -7/Factory | Evolved 2 slots: Utility x2 44734 | -7/Factory | Fabricated Huge Storage Unit (x1) 45126 | -7/Factory | Garrison activated, responded to threat 45360 | -7/Factory | Build established: Hauler-Tank 46276 | -7/Factory | Build established: Hauler-Mutant 46955 | -7/Factory | Identified exit to Lower Caves 47064 | -7/Factory | Noticed a derelict Sapper rigging charges 47152 | -7/Factory | Build established: Hauler-Tank 47780 | -7/Factory | Build established: Hauler-Mutant 47799 | -7/Factory | Discovered new exit (range 4) 47811 | -7/Factory | Identified exit to Factory 48004 | -7/Factory | Repaired Mak. System Restoration Module 48035 | -7/Factory | Repaired Humpback 48080 | -7/Factory | Repaired Gatling Laser 48888 | -7/Factory | Entered Lower Caves 49677 | -7/Lower Caves | Ambushed by wild Derelicts 49962 | -7/Lower Caves | Build established: Hauler-Tank 50654 | -7/Lower Caves | Encountered a Warlord checkpoint 50738 | -7/Lower Caves | Build established: Hauler-Mutant 51395 | -7/Lower Caves | Discovered new exit (range 6) 51456 | -7/Lower Caves | Build established: Hauler-Tank 51462 | -7/Lower Caves | Identified exit to Lower Caves 51949 | -7/Lower Caves | Attracted the attention of an 0b10 checkpoint 52575 | -7/Lower Caves | Entered another Lower Caves area 52681 | -7/Lower Caves | Discovered exit to Factory (range 7) 54055 | -7/Lower Caves | Discovered new exit (range 6) 54162 | -7/Lower Caves | Encountered a Warlord checkpoint 54490 | -7/Lower Caves | Attracted the attention of an 0b10 checkpoint 55157 | -7/Lower Caves | Entered Data Miner 55157 | -7/Data Miner | Accompanied by 1 ally 55157 | -7/Data Miner | Discovered new exit (range 6) 55199 | -7/Data Miner | Met Data Miner 55241 | -7/Data Miner | Learned location of Section 7 (-2) 55241 | -7/Data Miner | Acquired the access code to Warlord's prototype stash 55274 | -7/Data Miner | Received God Mode back door access code from Data Miner 55330 | -7/Data Miner | Identified exit to Proximity Caves 55513 | -7/Data Miner | Data Conduit disabled 55722 | -7/Data Miner | Build established: Mutant 55898 | -7/Data Miner | Entered Proximity Caves 55999 | -6/Proximity Caves | Learned Factory emergency access door positions 56069 | -6/Proximity Caves | Build established: Hauler-Gunner 56605 | -6/Proximity Caves | Build established: Hauler-Mutant 57926 | -6/Proximity Caves | Discovered exit to Factory (range 14) 58564 | -6/Proximity Caves | Spotted B-75 Beast 58711 | -6/Proximity Caves | Destroyed B-75 Beast 58871 | -6/Proximity Caves | Build established: Hauler-Gunner 58919 | -6/Proximity Caves | Learned Factory stockpile data 58979 | -6/Proximity Caves | Learned location of 1 exit from Lower Caves 59600 | -6/Proximity Caves | System corruption reached 10% 59600 | -6/Proximity Caves | Entered Factory 59600 | -6/Factory | Evolved 2 slots: Utility x2 59818 | -6/Factory | Build established: Hauler-Mutant 59888 | -6/Factory | Repaired Arm. Huge Wheel? 60187 | -6/Factory | Identified exit to Lower Caves 60293 | -6/Factory | Identified exit to Factory 61399 | -6/Factory | Build established: Hacker-Mutant 61811 | -6/Factory | Build established: Hacker-Gunner 63072 | -6/Factory | Fabricated Adv. Hacking Suite (x1) 63099 | -6/Factory | Fabricated Adv. Hacking Suite (x1) 63383 | -6/Factory | Fabricated Adv. Hacking Suite (x1) 63427 | -6/Factory | Fabricated Combat Drone Bay (x1) 63472 | -6/Factory | Entered Lower Caves 63473 | -6/Lower Caves | Identified exit to Lower Caves 63489 | -6/Lower Caves | Encountered a Warlord checkpoint 63509 | -6/Lower Caves | Learned 4 Factory zone layouts 63737 | -6/Lower Caves | Build established: Hauler-Gunner 64150 | -6/Lower Caves | Learned 8 Research zone layouts 64244 | -6/Lower Caves | Learned location of 1 exit from Factory 65983 | -6/Lower Caves | Build established: Hauler-Tank 66204 | -6/Lower Caves | Entered another Lower Caves area 66205 | -6/Lower Caves | Encountered a Warlord checkpoint 66207 | -6/Lower Caves | Discovered exit to Factory (range 10) 66775 | -6/Lower Caves | Learned Factory garrison access intel 66829 | -6/Lower Caves | Learned Factory terminal intel 67185 | -6/Lower Caves | Discovered new exit (range 17) 68477 | -6/Lower Caves | Identified exit to Zion 68965 | -6/Lower Caves | Entered Zion 69184 | -6/Zion | Given the Hacking Drone Bay 69220 | -6/Zion | Found Prototype Device 69220 | -6/Zion | Identified Hacking Drone Bay 69245 | -6/Zion | Discovered new exit (range 8) 69710 | -6/Zion | Given A8's code to call for help 69830 | -6/Zion | Received a visual enhancement algorithm 70618 | -6/Zion | Found Prototype Special Weapon 70618 | -6/Zion | Identified RU-N14's Throwing Claymores 70707 | -6/Zion | Gained Derelict followers 70944 | -6/Zion | Acquired unknown access codes intercepted by a Zionite 71178 | -6/Zion | Build established: Hauler-Mutant 71483 | -6/Zion | Found Prototype Device 71483 | -6/Zion | Identified Phasing AFG 71726 | -6/Zion | Opened final containment barrier to the Deep Caves 71766 | -6/Zion | Discovered new exit (range 3) 71766 | -6/Zion | Saw the warning signs outside the Deep Caves entrance 71892 | -6/Zion | Found RU-N14's Throwing Claymores 71895 | -6/Zion | Found RU-N14's Throwing Claymores 71899 | -6/Zion | Found RU-N14's Throwing Claymores 72171 | -6/Zion | Build established: Hauler-Tank 72191 | -6/Zion | Enhanced Grunt warped into view, answering call for help 72192 | -6/Zion | Enhanced Grunt warped into view, answering call for help 73117 | -6/Zion | Identified exit to Deep Caves 73119 | -6/Zion | Entered Deep Caves 73119 | -6/Deep Caves | Accompanied by 7 allies 73514 | -6/Deep Caves | Allies destroyed Z-Imprinter 73515 | -6/Deep Caves | Z-Facility disabled 73577 | -6/Deep Caves | Found Prototype Protection 73577 | -6/Deep Caves | Identified Zio. Weapon Casing 73902 | -6/Deep Caves | Found Prototype Protection 73902 | -6/Deep Caves | Identified Zio. Heavy Carapace 74746 | -6/Deep Caves | Discovered new exit (range 6) 75264 | -6/Deep Caves | Found Prototype Device 75264 | -6/Deep Caves | Identified Exp. Thermal Shield 75546 | -6/Deep Caves | Build established: Hauler-Mutant 76035 | -6/Deep Caves | Found Zio. Heavy Carapace 76039 | -6/Deep Caves | Found Zio. Heavy Carapace 76087 | -6/Deep Caves | Found Zio. Weapon Casing 76090 | -6/Deep Caves | Found Zio. Weapon Casing 76107 | -6/Deep Caves | Found Zio. Weapon Casing 76565 | -6/Deep Caves | Found Prototype Leg 76592 | -6/Deep Caves | Identified Potential Leg 78010 | -6/Deep Caves | Build established: Hauler-Tank 78832 | -6/Deep Caves | Entered Proximity Caves 80471 | -5/Proximity Caves | Spotted B-75 Beast 81100 | -5/Proximity Caves | Allies destroyed B-75 Beast 84248 | -5/Proximity Caves | Entered Factory 84248 | -5/Factory | Evolved 2 slots: Utility x1, Weapon x1 84249 | -5/Factory | Identified exit to Extension 84251 | -5/Factory | Loaded intel: 28 terminal locations 84252 | -5/Factory | Loaded intel: 4 garrison access locations 84785 | -5/Factory | Build established: Hacker-Gunner 84912 | -5/Factory | Identified exit to Upper Caves 84912 | -5/Factory | Identified exit to Factory 85137 | -5/Factory | Central database locked down 85217 | -5/Factory | Fabricated Hyp. Mass Driver (x2) 85252 | -5/Factory | Fabricated Recoil Nullifier (x2) 85327 | -5/Factory | Fabricated Hyp. Mass Driver (x2) 86236 | -5/Factory | Repaired Mak. System Restoration Module 86354 | -5/Factory | Repaired Arm. Huge Wheel 86786 | -5/Factory | Sucked down chute 86786 | -5/Factory | Entered Waste 86787 | -5/Waste | Met a frightened Derelict 86801 | -5/Waste | EMP discharged 86852 | -5/Waste | Spotted C-40 Crusher 86866 | -5/Waste | Destroyed C-40 Crusher 86898 | -5/Waste | Spotted C-40 Crusher 86901 | -5/Waste | EMP discharged 86901 | -5/Waste | System corruption reached 10% 86915 | -5/Waste | Spotted C-40 Crusher 86932 | -5/Waste | Crushed by Compactor (1 part destroyed, 1 dropped) 86934 | -5/Waste | Destroyed C-40 Crusher 86949 | -5/Waste | Spotted C-40 Crusher 86973 | -5/Waste | Destroyed C-40 Crusher 86996 | -5/Waste | Spotted C-40 Crusher 87001 | -5/Waste | EMP discharged 87002 | -5/Waste | Destroyed C-40 Crusher 87069 | -5/Waste | Destroyed C-40 Crusher 87101 | -5/Waste | EMP discharged 87168 | -5/Waste | Discovered new exit (range 10) 87192 | -5/Waste | Entered Factory 87964 | -5/Factory | Build established: Hacker-Tank 88247 | -5/Factory | Cargo convoy interrupted 88309 | -5/Factory | Found Imp. Powered Armor 88699 | -5/Factory | Fabricated Combat Drone Bay (x1) 89371 | -5/Factory | Repaired Arm. Huge Wheel 89386 | -5/Factory | Build established: Hacker-Gunner 90668 | -5/Factory | Entered Upper Caves 90669 | -5/Upper Caves | Encountered a Warlord checkpoint 90967 | -5/Upper Caves | Learned 8 Factory zone layouts 92921 | -5/Upper Caves | Spotted B-75 Beast 92997 | -5/Upper Caves | Allies destroyed B-75 Beast 93185 | -5/Upper Caves | Acquired the password to a Derelict Tinkerer's latest research 93273 | -5/Upper Caves | Discovered new exit (range 15) 93708 | -5/Upper Caves | Entered another Upper Caves area 93740 | -5/Upper Caves | Found Alien Artifact 93740 | -5/Upper Caves | Identified Core Expander 93740 | -5/Upper Caves | Installed Core Expander, added new Power slot 93863 | -5/Upper Caves | Discovered exit to Factory (range 21) 94772 | -5/Upper Caves | Learned Factory terminal intel 95002 | -5/Upper Caves | Learned Factory stockpile data 95571 | -5/Upper Caves | Discovered new exit (range 5) 95585 | -5/Upper Caves | Identified exit to Warlord 97587 | -5/Upper Caves | Entered Warlord 97587 | -5/Warlord | Accompanied by 2 allies 97609 | -5/Warlord | Discovered new exit (range 30) 98009 | -5/Warlord | Build established: Hacker-Mutant 98115 | -5/Warlord | Met Warlord 98135 | -5/Warlord | Opened Warlord's prototype stash 98140 | -5/Warlord | Warlord's base attacked by MAIN.C 98144 | -5/Warlord | Found Prototype Device 98144 | -5/Warlord | Identified Thermal Barrier 98162 | -5/Warlord | Found Prototype Device 98162 | -5/Warlord | Identified Exp. Cloaking Device 98169 | -5/Warlord | Found Prototype Reactor 98183 | -5/Warlord | Found Prototype Hackware 98365 | -5/Warlord | Found Prototype Special Weapon 98365 | -5/Warlord | Identified RU-N14's Throwing Claymores v3 98372 | -5/Warlord | Identified Vortex Chain Reactor 98375 | -5/Warlord | Found RU-N14's Throwing Claymores v3 98383 | -5/Warlord | Found RU-N14's Throwing Claymores v3 98386 | -5/Warlord | Found RU-N14's Throwing Claymores v3 98390 | -5/Warlord | Found RU-N14's Throwing Claymores v3 98394 | -5/Warlord | Found RU-N14's Throwing Claymores v3 98441 | -5/Warlord | Build established: Hacker-Gunner 98456 | -5/Warlord | Found Prototype Energy Gun 98490 | -5/Warlord | Warlord forces counterattacked 98520 | -5/Warlord | Spotted Striker 98562 | -5/Warlord | Spotted Executioner 98614 | -5/Warlord | Spotted Executioner 98641 | -5/Warlord | Lost 20 allies 98751 | -5/Warlord | Build established: Hacker-Tank 98815 | -5/Warlord | Warlord base infiltrated, sounded retreat 99018 | -5/Warlord | Entered Proximity Caves 99959 | -4/Proximity Caves | Received a Behemoth hack from an annoying Tinkerer 100170 | -4/Proximity Caves | Discovered exit to Factory (range 13) 100635 | -4/Proximity Caves | Learned Research trap positions 101479 | -4/Proximity Caves | Entered Factory 101479 | -4/Factory | Accompanied by 1 ally 101479 | -4/Factory | Evolved 2 slots: Weapon x2 101482 | -4/Factory | Loaded intel: 26 terminal locations 101540 | -4/Factory | Identified exit to Upper Caves 101540 | -4/Factory | Identified exit to Armory 101706 | -4/Factory | Repaired Humpback 101788 | -4/Factory | Identified System Mapper 101788 | -4/Factory | Discovered new exit (range 5) 101834 | -4/Factory | Identified exit to Research 102246 | -4/Factory | Build established: Hacker-Executioner 102432 | -4/Factory | Repaired Arm. Huge Wheel 102581 | -4/Factory | Fabricated L-61 Swordsman? 102637 | -4/Factory | Lost 3 allies 102702 | -4/Factory | Fabricated Combat Drone Bay? 103670 | -4/Factory | Entered Upper Caves 103794 | -4/Upper Caves | Encountered a Warlord checkpoint 103858 | -4/Upper Caves | Build established: Hauler-Executioner 103939 | -4/Upper Caves | Lost 3 allies 105538 | -4/Upper Caves | Discovered new exit (range 13) 105623 | -4/Upper Caves | Learned 4 Research zone layouts 105652 | -4/Upper Caves | Identified exit to Upper Caves 105687 | -4/Upper Caves | Learned location of 1 exit from Upper Caves 105951 | -4/Upper Caves | Entered another Upper Caves area 106697 | -4/Upper Caves | Attracted the attention of an 0b10 checkpoint 107510 | -4/Upper Caves | Discovered new exit (range 47) 107830 | -4/Upper Caves | Learned Research trap positions 107830 | -4/Upper Caves | Learned Armory stockpile data 107830 | -4/Upper Caves | Learned Research terminal intel 107830 | -4/Upper Caves | Learned Factory garrison access intel 107892 | -4/Upper Caves | Learned Research terminal intel 107895 | -4/Upper Caves | Learned 4 Research zone layouts 109260 | -4/Upper Caves | Identified exit to Zhirov 109432 | -4/Upper Caves | Entered Zhirov 109432 | -4/Zhirov | Discovered new exit (range 5) 109638 | -4/Zhirov | Learned location of Testing (-3) 109638 | -4/Zhirov | Learned location of Command (-1) 109727 | -4/Zhirov | Found Alien Artifact 109727 | -4/Zhirov | Identified Integrated Reactor 109727 | -4/Zhirov | Installed Integrated Reactor, increased core energy generation (+10) 109750 | -4/Zhirov | Build established: Hauler-Mutant 109756 | -4/Zhirov | Found Alien Artifact 110145 | -4/Zhirov | Entered Proximity Caves 110362 | -3/Proximity Caves | Build established: Hauler-Executioner 111519 | -3/Proximity Caves | Identified Plasma Storm 112200 | -3/Proximity Caves | Discovered exit to Research (range 16) 112778 | -3/Proximity Caves | Entered Research 112778 | -3/Research | Evolved 2 slots: Utility x2 112779 | -3/Research | Identified exit to Research 112780 | -3/Research | Loaded intel: 99 trap records 112781 | -3/Research | Loaded intel: 21 terminal locations 112950 | -3/Research | Identified exit to Testing 113199 | -3/Research | Identified Transdimensional Reconstructor 113265 | -3/Research | Build established: Wizard-Executioner 114052 | -3/Research | Entered Testing 114061 | -3/Testing | Protovariant out of control (PP-HZAGONREO8) 114350 | -3/Testing | Found Prototype Energy Cannon 114350 | -3/Testing | Identified Null Cannon 114442 | -3/Testing | Central database locked down 114601 | -3/Testing | Fabricated Ragnarok Missile Launcher? 114764 | -3/Testing | Repaired Imp. Powered Armor 114854 | -3/Testing | Repaired Prc. Matter Filter 114997 | -3/Testing | Spotted Striker 115002 | -3/Testing | Spotted Striker 115062 | -3/Testing | Found Prototype Energy Cannon 115062 | -3/Testing | Identified Potential Cannon 115196 | -3/Testing | Fabricated Adv. Transmission Jammer? 115566 | -3/Testing | Found System Mapper 115784 | -3/Testing | Spotted Investigator 115785 | -3/Testing | Scanned by Researcher 115795 | -3/Testing | Destroyed Investigator 115923 | -3/Testing | Repaired Imp. Powered Armor 115938 | -3/Testing | Repaired Arm. Huge Wheel 116051 | -3/Testing | Found Prototype Energy Cannon 116051 | -3/Testing | Identified Disintegrator 116177 | -3/Testing | Found Corrupted Prototype Reactor 116258 | -3/Testing | Found Prototype Energy Gun 116258 | -3/Testing | Identified Warp Gun 116586 | -3/Testing | Build established: Wizard-Mutant 116712 | -3/Testing | Found Prototype Device 116712 | -3/Testing | Identified Exp. Hardlight Generator 116856 | -3/Testing | Found Prototype Device 116856 | -3/Testing | Identified Exp. Transmission Jammer 116980 | -3/Testing | Fabricated Centrium Wheel (x2) 117155 | -3/Testing | Build established: Wizard-Executioner 117268 | -3/Testing | Found Potential Cannon 117434 | -3/Testing | Identified Zero-point Reactor 117435 | -3/Testing | System corruption reached 10% 117437 | -3/Testing | Entered Research 117437 | -2/Research | Warlord forces began assault on 0b10 117437 | -2/Research | Evolved 2 slots: Propulsion x2 117438 | -2/Research | Loaded intel: 79 trap records 117439 | -2/Research | Loaded intel: 25 terminal locations 117462 | -2/Research | Identified exit to Quarantine 117547 | -2/Research | Research machine network offline 117797 | -2/Research | Spotted B-90 Cyclops 117820 | -2/Research | Borebot progress halted 117847 | -2/Research | Lost 4 allies 117921 | -2/Research | Spotted Striker 118039 | -2/Research | Spotted Executioner 118044 | -2/Research | Met up with Warlord 118047 | -2/Research | Spotted Executioner 118072 | -2/Research | Spotted Striker 118072 | -2/Research | Spotted Executioner 118072 | -2/Research | Found Prototype Slashing Weapon 118072 | -2/Research | Identified Particle Cleaver 118858 | -2/Research | Spotted Executioner 118858 | -2/Research | Spotted Striker 118885 | -2/Research | Destroyed Executioner 118934 | -2/Research | Entered Quarantine 119349 | -2/Quarantine | Spotted Alpha 7 119383 | -2/Quarantine | Cryocooling Duct disabled 119398 | -2/Quarantine | Ambient heat levels rising (+20) 119398 | -2/Quarantine | Non-combat units ordered to evacuate 119719 | -2/Quarantine | Found Alien Slashing Weapon 119719 | -2/Quarantine | Identified Sigix Broadsword 119742 | -2/Quarantine | Cryocooling Duct disabled 119757 | -2/Quarantine | Ambient heat levels rising (+20) 119757 | -2/Quarantine | Combat units ordered to evacuate 119794 | -2/Quarantine | Destroyed Alpha 7 119805 | -2/Quarantine | Build established: Wizard-Tank 119857 | -2/Quarantine | Quarantine Guard activated 120330 | -2/Quarantine | Found Prototype Processor 120409 | -2/Quarantine | Spotted Quarantine Guard 120425 | -2/Quarantine | Destroyed Quarantine Guard 120494 | -2/Quarantine | Spotted Quarantine Guard 120517 | -2/Quarantine | Destroyed Quarantine Guard 120680 | -2/Quarantine | Spotted Quarantine Guard 120692 | -2/Quarantine | Destroyed Quarantine Guard 120827 | -2/Quarantine | Spotted Quarantine Guard 120841 | -2/Quarantine | Destroyed Quarantine Guard 120849 | -2/Quarantine | Spotted Quarantine Guard 120864 | -2/Quarantine | Destroyed Quarantine Guard 121376 | -2/Quarantine | Spotted Quarantine Guard 121376 | -2/Quarantine | Spotted Quarantine Guard 121410 | -2/Quarantine | Destroyed Quarantine Guard 121415 | -2/Quarantine | Destroyed Quarantine Guard 121801 | -2/Quarantine | Spotted Quarantine Guard 121812 | -2/Quarantine | Destroyed Quarantine Guard 122062 | -2/Quarantine | Spotted Quarantine Guard 122111 | -2/Quarantine | Destroyed Quarantine Guard 122274 | -2/Quarantine | Discovered new exit (range 15) 122274 | -2/Quarantine | Spotted Quarantine Guard 122299 | -2/Quarantine | Destroyed Quarantine Guard 123171 | -2/Quarantine | Spotted Quarantine Guard 123221 | -2/Quarantine | Destroyed Quarantine Guard 124262 | -2/Quarantine | Found Alien Artifact 124262 | -2/Quarantine | Identified Phase Armor 124715 | -2/Quarantine | Found Prototype Processor 124832 | -2/Quarantine | Identified Exp. Targeting Computer 124965 | -2/Quarantine | Found Alien Artifact 125001 | -2/Quarantine | Found Alien Artifact 125019 | -2/Quarantine | Found Alien Artifact 125155 | -2/Quarantine | Identified Dimensional Node Initializer 125155 | -2/Quarantine | Identified Hpw. Transdimensional Reconstructor 125155 | -2/Quarantine | Identified Core Reset Matrix 125334 | -2/Quarantine | Found Alien Energy Cannon 125412 | -2/Quarantine | Identified Core Cannon 125597 | -2/Quarantine | Found Alien Launcher 125691 | -2/Quarantine | Identified Sigix Terminator 126012 | -2/Quarantine | Found Alien Artifact 126097 | -2/Quarantine | Found Alien Artifact 126222 | -2/Quarantine | Identified Subatomic Replicator 126222 | -2/Quarantine | Identified Terrabomb 126547 | -2/Quarantine | Repaired Adv. Weapon Cycler 126864 | -2/Quarantine | Repaired Exp. Utility Shielding 126877 | -2/Quarantine | Repaired Imp. Utility Shielding 127012 | -2/Quarantine | Found Alien Artifact 127046 | -2/Quarantine | Identified Phase Redirector 127485 | -2/Quarantine | Initialized slip node 128218 | -2/Quarantine | Central database locked down 129731 | -2/Quarantine | Spotted Fortress 129791 | -2/Quarantine | Destroyed Fortress 129956 | -2/Quarantine | Discovered new exit (range 6) 129956 | -2/Quarantine | Spotted Quarantine Guard 129962 | -2/Quarantine | Destroyed Quarantine Guard 130708 | -2/Quarantine | Met incapacitated Sigix Warrior 130708 | -2/Quarantine | Lockdown squad dispatched 130817 | -2/Quarantine | Spotted Lightning 130821 | -2/Quarantine | Spotted Lightning 130822 | -2/Quarantine | Spotted Lightning 130833 | -2/Quarantine | Destroyed Lightning 130847 | -2/Quarantine | Destroyed Lightning 130848 | -2/Quarantine | System corruption reached 10% 130849 | -2/Quarantine | Destroyed Lightning 130865 | -2/Quarantine | Found Prototype Device 130865 | -2/Quarantine | Identified Exp. EM Disruption Field 131644 | -2/Quarantine | Repaired Adv. Heavy Siege Treads 132099 | -2/Quarantine | Found Exp. Phase Shifter 132103 | -2/Quarantine | Found Prototype Energy Cannon 132103 | -2/Quarantine | Identified EMDS 132189 | -2/Quarantine | Found Transdimensional Reconstructor 132205 | -2/Quarantine | Found Dimensional Node Initializer 133923 | -2/Quarantine | Entered Section 7 133955 | -2/Section 7 | Identified exit to Access 134234 | -2/Section 7 | Found Integrated Reactor 134234 | -2/Section 7 | Installed Integrated Reactor, increased core energy generation (+10) 134472 | -2/Section 7 | Found Alien Artifact 134672 | -2/Section 7 | Identified Navigation Efficiency Matrix 134897 | -2/Section 7 | Found Alien Artifact 134897 | -2/Section 7 | Identified Integrated Dissipator 134897 | -2/Section 7 | Installed Integrated Dissipator, increased core heat dissipation (+20) 134942 | -2/Section 7 | Spotted S7 Guard 134955 | -2/Section 7 | Destroyed S7 Guard 134984 | -2/Section 7 | Found Corrupted Prototype Protection 135214 | -2/Section 7 | Spotted S7 Guard 135225 | -2/Section 7 | Destroyed S7 Guard 135338 | -2/Section 7 | Found Alien Artifact 135338 | -2/Section 7 | Identified Spacefold Activator 135471 | -2/Section 7 | First assault squad dispatched 135781 | -2/Section 7 | Found Alien Artifact 135781 | -2/Section 7 | Identified Integrity Redistributor 135781 | -2/Section 7 | Used Integrity Redistributor, redistributed integrity from core (-154) 135994 | -2/Section 7 | Spotted B-90 Cyclops 136256 | -2/Section 7 | Core integrity fell below 50% 136276 | -2/Section 7 | Initialized slip node 136406 | -2/Section 7 | Destroyed B-90 Cyclops 136705 | -2/Section 7 | Spotted Executioner 136706 | -2/Section 7 | Spotted Executioner 136728 | -2/Section 7 | Core integrity fell below 20% 136738 | -2/Section 7 | Destroyed Executioner 136749 | -2/Section 7 | Destroyed Executioner 136758 | -2/Section 7 | Spotted Alpha 7 136777 | -2/Section 7 | Destroyed Alpha 7 136865 | -2/Section 7 | Found Transdimensional Reconstructor 136868 | -2/Section 7 | Found Transdimensional Reconstructor 136873 | -2/Section 7 | Found Hpw. Transdimensional Reconstructor 137084 | -2/Section 7 | Spotted B-99 Colossus 137161 | -2/Section 7 | Found Integrated Reactor 137161 | -2/Section 7 | Installed Integrated Reactor, increased core energy generation (+10) 137165 | -2/Section 7 | Found Integrated Reactor 137165 | -2/Section 7 | Installed Integrated Reactor, increased core energy generation (+10) 137170 | -2/Section 7 | Found Integrated Reactor 137170 | -2/Section 7 | Installed Integrated Reactor, increased core energy generation (+10) 137242 | -2/Section 7 | Found Alien Artifact 137242 | -2/Section 7 | Identified LRC Inertial Stabilizer 137242 | -2/Section 7 | Installed LRC Inertial Stabilizer, increased mass support (+10) 137264 | -2/Section 7 | Found LRC Inertial Stabilizer 137264 | -2/Section 7 | Installed LRC Inertial Stabilizer, increased mass support (+10) 137267 | -2/Section 7 | Found LRC Inertial Stabilizer 137267 | -2/Section 7 | Installed LRC Inertial Stabilizer, increased mass support (+10) 137334 | -2/Section 7 | Found Integrity Redistributor 137337 | -2/Section 7 | Warped through subspace to slip node 137727 | -2/Section 7 | Found Alien Artifact 137727 | -2/Section 7 | Identified Core Physics Calibrator 137877 | -2/Section 7 | Found Quantum Capacitor 137894 | -2/Section 7 | Warped through subspace to slip node 137929 | -2/Section 7 | Identified Hvy. Regenerative Plating 137931 | -2/Section 7 | Entered Access 137931 | -1/Access | Evolved 2 slots (calibrated): -Propulsion x1, Utility x3 137969 | -1/Access | Identified exit to Command 138850 | -1/Access | Fabricated Heavy Servo Lattice (x1) 138931 | -1/Access | First assault squad dispatched 139031 | -1/Access | Found Prototype Energy Gun 139031 | -1/Access | Identified Enh. Gamma Rifle 139285 | -1/Access | Spotted B-99 Colossus 139311 | -1/Access | Found Point Singularity Launcher 139417 | -1/Access | Entered Command 139579 | -1/Command | Repaired Imp. Utility Shielding 139742 | -1/Command | Spotted B-99 Colossus 139744 | -1/Command | Befriended a Behemoth using the annoying Tinkerer's hack 140074 | -1/Command | Build established: Wizard-Gunner 140214 | -1/Command | Disengaged cave seal 140214 | -1/Command | Derelicts emerged from the dark tunnel 140214 | -1/Command | Welcomed Warlord to Command 140273 | -1/Command | Disengaged cave seal 140273 | -1/Command | Derelicts emerged from the dark tunnel 140354 | -1/Command | Derelicts emerged from the dark tunnel 140368 | -1/Command | Spotted Striker 140370 | -1/Command | Spotted Striker 140370 | -1/Command | Spotted Executioner 140374 | -1/Command | Spotted Executioner 140377 | -1/Command | Spotted Executioner 140386 | -1/Command | Spotted B-99 Colossus 140386 | -1/Command | Spotted Executioner 140388 | -1/Command | Spotted B-99 Colossus 140395 | -1/Command | Destroyed B-99 Colossus 140406 | -1/Command | Destroyed B-99 Colossus 140430 | -1/Command | Lost 25 allies 140463 | -1/Command | First assault squad dispatched 140489 | -1/Command | Build established: Wizard-Tank 140542 | -1/Command | Found Prototype Device 140542 | -1/Command | Identified Adv. Kinecellerator 140569 | -1/Command | Found Prototype Processor 140569 | -1/Command | Identified Exp. Core Analyzer 140603 | -1/Command | Derelicts emerged from the dark tunnel 140749 | -1/Command | Lost 4 allies 140866 | -1/Command | Build established: Hacker-Tank 140938 | -1/Command | Found Thermal Barrier 140960 | -1/Command | Lost 7 allies 141702 | -1/Command | Build established: Hacker-Gunner 142043 | -1/Command | Build established: Hacker-Tank 142564 | -1/Command | Found Prototype Protection 142564 | -1/Command | Identified Exp. Powered Armor 142571 | -1/Command | Found Prototype Ballistic Cannon 142571 | -1/Command | Identified Blast Cannon 142606 | -1/Command | Found Blast Cannon 142607 | -1/Command | Build established: Scavenger-Tank 142654 | -1/Command | Found Exp. Targeting Computer 143566 | -1/Command | Used Subatomic Replicator to replicate Blast Cannon 143829 | -1/Command | Destroyed 8 combat bots 143853 | -1/Command | Build established: Scavenger-Executioner 144596 | -1/Command | High security lockdown imminent 144676 | -1/Command | High security lockdown engaged 144865 | -1/Command | Destroyed 18 combat bots 144918 | -1/Command | Spotted Striker 144918 | -1/Command | Spotted Investigator 144920 | -1/Command | Destroyed Striker 144943 | -1/Command | Destroyed Investigator 144964 | -1/Command | Destroyed 16 combat bots 145030 | -1/Command | Spotted Striker 145036 | -1/Command | Destroyed Striker 145036 | -1/Command | Spotted Striker 145036 | -1/Command | Spotted Executioner 145036 | -1/Command | Spotted Executioner 145040 | -1/Command | Destroyed Striker 145043 | -1/Command | Destroyed Striker 145046 | -1/Command | Destroyed Executioner 145046 | -1/Command | Destroyed Executioner 145070 | -1/Command | Destroyed 8 combat bots 145242 | -1/Command | Spotted Striker 145242 | -1/Command | Spotted Striker 145242 | -1/Command | Spotted Striker 145246 | -1/Command | Spotted Executioner 145246 | -1/Command | Spotted Executioner 145248 | -1/Command | Spotted Executioner 145248 | -1/Command | Spotted Executioner 145249 | -1/Command | Destroyed Striker 145249 | -1/Command | Destroyed Executioner 145255 | -1/Command | Destroyed Executioner 145260 | -1/Command | Destroyed Striker 145260 | -1/Command | Destroyed Striker 145266 | -1/Command | Destroyed Executioner 145278 | -1/Command | Spotted Executioner 145279 | -1/Command | Spotted Striker 145283 | -1/Command | Destroyed Executioner 145290 | -1/Command | Destroyed Executioner 145290 | -1/Command | Destroyed Striker 145317 | -1/Command | Destroyed 40 combat bots 145522 | -1/Command | Spotted Executioner 145522 | -1/Command | Spotted Striker 145522 | -1/Command | Spotted Striker 145522 | -1/Command | Spotted Executioner 145527 | -1/Command | Destroyed Executioner 145532 | -1/Command | Destroyed Executioner 145537 | -1/Command | Destroyed Striker 145543 | -1/Command | Destroyed Striker 145570 | -1/Command | Destroyed 11 combat bots 147066 | -1/Command | Spotted M Guard 147066 | -1/Command | Spotted M Guard 147066 | -1/Command | Spotted Combat Programmer 147068 | -1/Command | Spotted Combat Programmer 147276 | -1/Command | Found Prototype Launcher 147276 | -1/Command | Identified Containment Facilitator 148585 | -1/Command | Destroyed M Guard 148601 | -1/Command | Destroyed M Guard 148601 | -1/Command | All MAIN.C guards destroyed 148611 | -1/Command | Found Prototype Device 148611 | -1/Command | Identified AEGIS Remote Shield 148638 | -1/Command | Found Prototype Launcher 148638 | -1/Command | Identified Adv. Micro-nuke Launcher 149355 | -1/Command | Phase Generator disabled 151276 | -1/Command | Discovered new exit (range 14) 153059 | -1/Command | Destroyed 46 combat bots 153517 | -1/Command | Used Integrity Redistributor, redistributed integrity from core (-322) 153591 | -1/Command | Destroyed 78 combat bots 153759 | -1/Command | Destroyed 16 combat bots 153895 | -1/Command | Destroyed 12 combat bots 154519 | -1/Command | Destroyed 62 combat bots 154984 | -1/Command | Destroyed 8 combat bots 155290 | -1/Command | System corruption reached 10% 155324 | -1/Command | Destroyed 29 combat bots 155375 | -1/Command | Destroyed 20 combat bots 155521 | -1/Command | Destroyed 15 combat bots 155575 | -1/Command | Destroyed 11 combat bots 155822 | -1/Command | Build established: Scavenger-Gunner 155869 | -1/Command | Met MAIN.C 155870 | -1/Command | 0b10 Conduit disabled 155877 | -1/Command | Destroyed MAIN.C Shell 155880 | -1/Command | MAIN.C activated Command garrisons 155901 | -1/Command | Destroyed MAIN.C 155937 | -1/Command | Discovered new exit (range 36) 155937 | -1/Command | Discovered new exit (range 91) 155937 | -1/Command | Extracted map data and part IDs from MAIN.C's data core 156112 | -1/Command | Found Exp. System Purifier 157426 | -1/Command | Build established: Scavenger-Executioner 157677 | -1/Command | Found Exp. Hardlight Generator 157681 | -1/Command | Found Exp. Target Analyzer 157684 | -1/Command | Found Vortex Chain Reactor 157690 | -1/Command | Found Zero-point Reactor 157921 | -1/Command | Found Zero-point Reactor 157925 | -1/Command | Found Zero-point Reactor 157931 | -1/Command | Found Exp. Targeting Computer 157936 | -1/Command | Found Hvy. Regenerative Plating 158529 | -1/Command | Found Exp. Core Analyzer 159594 | -1/Command | Build established: Scavenger-Gunner 160481 | -1/Command | Found Perforator 160725 | -1/Command | Warped through subspace to slip node 160725 | -1/Command | Discovered new exit (range 4) 160743 | -1/Command | Entered Access_0 160746 | -1/Access_0 | Met Architect 160757 | -1/Access_0 | Destroyed A8 160762 | -1/Access_0 | Architect warped through subspace 160796 | -1/Access_0 | Build established: Scavenger-Executioner 160830 | -1/Access_0 | Architect warped through subspace 160886 | -1/Access_0 | Architect warped through subspace 160909 | -1/Access_0 | Subspace Access Node disabled 160915 | -1/Access_0 | Subspace Access Node disabled 160939 | -1/Access_0 | Architect warped through subspace 160977 | -1/Access_0 | Subspace Access Node disabled 161005 | -1/Access_0 | Architect warped through subspace 161067 | -1/Access_0 | Architect warped through subspace 161111 | -1/Access_0 | Found Exp. Weapon Cycler 161116 | -1/Access_0 | Architect warped through subspace 161118 | -1/Access_0 | Found Exp. Phase Shifter 161123 | -1/Access_0 | Found Prototype Device 161123 | -1/Access_0 | Identified Desublimator 161131 | -1/Access_0 | Found Exp. Weapon Cycler 161135 | -1/Access_0 | Found Exp. Phase Shifter 161140 | -1/Access_0 | Found Exp. Targeting Computer 161149 | -1/Access_0 | Architect warped through subspace 161185 | -1/Access_0 | Architect warped through subspace 161198 | -1/Access_0 | Found Exp. Terrain Scan Processor 161201 | -1/Access_0 | Found Spectral Analyzer 161207 | -1/Access_0 | A6 warped into view 161223 | -1/Access_0 | Core integrity fell below 50% 161224 | -1/Access_0 | Destroyed A6 161230 | -1/Access_0 | Architect warped through subspace 161263 | -1/Access_0 | Architect warped through subspace 161301 | -1/Access_0 | Architect warped through subspace 161355 | -1/Access_0 | Architect warped through subspace 161400 | -1/Access_0 | Architect warped through subspace 161431 | -1/Access_0 | Architect warped through subspace 161466 | -1/Access_0 | Architect warped through subspace 161507 | -1/Access_0 | Architect warped through subspace 161523 | -1/Access_0 | Subspace Access Node disabled 161560 | -1/Access_0 | Destroyed Architect 161561 | -1/Access_0 | Architect triggered a singularity event 161562 | -1/Access_0 | Released all parts (20) 161562 | -1/Access_0 | Extracted unknown sensor trigger ID from Architect's data core 161563 | -1/Access_0 | Found Hpw. Transdimensional Reconstructor 161563 | -1/Access_0 | Warped through subspace to slip node 161563 | -1/Access_0 | Discovered new exit (range 8) 161568 | *** | Escaped singularity! Last Messages --------------- 61563_ Released Exp. Weapon Cycler. 61563_ Released Centrium Wheel. 61563_ Released Spectral Analyzer. 61563_ Released Exp. Targeting Computer. 61563_ Released Perforator. 61563_ Released Exp. Core Analyzer. 61563_ Released Exp. Phase Shifter. 61563_ Released Graphene Brace. 61563_ Released Null Cannon. 61563_ Released Blast Cannon. 61563_ Acquired data core, extracted unknown sensor trigger ID. 61564_ A0_COM: 9. 61564_ Acquired Hpw. Transdimensional Reconstructor. 61564_ Warped through subspace, drawn to slip node. 61564_ EXIT=FOUND 61565_ A0_COM: 8. 61566_ A0_COM: 7. 61567_ A0_COM: 6. 61568_ A0_COM: 5. 61569_ A0_COM: 4. Map ----- +----------------------------------------------------+ | | | | | | | | | | | | | | | | | | | | | | | | | | | | | | | | | ?????????????????????????????????????????????????? | | ?????????????????????????????????????????????????? | | ?????????????????????????????????????????????????? | | ?????????????????????????????????????????????????? | | ?????????????????????????????????????????????????? | | ?????????????????????????????????????????????????? | | ????????????????????????###??????????????????????? | | ???????????????????????## ##?????????????????????? | | ???????????????????????# #?????????????????????? | | ???????????????????????# @ #?????????????????????? | | ??????????????????????## #?????????????????????? | | ??????????????????????# #?????????????????????? | | ??????????????????????# ##?????????????????????? | | ??????????????????????## #?????????????????????? | | ??????????????????????# #?????????????????????? | | ??????????????????????# ##?????????????????????? | | ??????????????????????# < #?????????????????????? | | ??????????????????????# ##?????????????????????? | | ??????????????????????## #??????????????????????? | | ???????????????????????####??????????????????????? | | ?????????????????????????????????????????????????? | | ?????????????????????????????????????????????????? | | ?????????????????????????????????????????????????? | | ?????????????????????????????????????????????????? | | ?????????????????????????????????????????????????? | | ?????????????????????????????????????????????????? | | ?????????????????????????????????????????????????? | | ?????????????????????????????????????????????????? | | ?????????????????????????????????????????????????? | | ?????????????????????????????????????????????????? | | ?????????????????????????????????????????????????? | | ?????????????????????????????????????????????????? | | ?????????????????????????????????????????????????? | | ?????????????????????????????????????????????????? | +----------------------------------------------------+ Best States ------------- Heat Dissipation 224 Coolant Potential 120 Energy Generation 105 Energy Capacity 990 Matter Stores 800 Matter Capacity 800 Sight Range 24 Terrain Scan Range 24 Terrain Scan Density 1010 Jamming Range 22 Cloak Strength 4 Additional Mass Support 20 Base Temperature (-) 150 Corruption Block 15 Armor Coverage 1200 Resistance: KI 30 Resistance: TH 50 Resistance: EM 75 Utility Shielding 90 Weapon Shielding 100 Point Defense Rating 80 Weapon Cycling 30 Melee Speed Boost 30 Phase Shifting 20 Evasion (%) 60 Targeting Accuracy 36 Melee Accuracy 6 Core Analysis 8 Recoil Reduction 6 Matter Filtering 50 Particle Charging 25 Salvage Targeting 3 Offensive Hacking 74 Defensive Hacking 32 Authchip Count 3 Trap Extractor Capacity 6 Item Schematics ----------------- Cargo Storage Unit | -10/Materials | Hacked Structural Scanner | -10/Materials | Hacked Huge Storage Unit | -8/Materials | Hacked Arm. Huge Wheel | -8/Materials | Hacked Humpback | -8/Materials | Scanalyzed Mak. System Restoration Module | -8/Materials | Scanalyzed Hvy. Assault Cannon | -8/Materials | Scanalyzed Hacking Suite | -8/Materials | Scanalyzed Machine Analyzer | -8/Materials | Scanalyzed Multitool | -8/Materials | Scanalyzed Seismic Detector | -8/Materials | Scanalyzed Imp. Cooling System | -8/Materials | Scanalyzed Imp. Utility Shielding | -8/Materials | Scanalyzed Mak. Axe | -8/Materials | Scanalyzed Microactuators | -7/Factory | Hacked Imp. Weapon Shielding | -7/Factory | Scanalyzed Combat Drone Bay | -7/Data Miner | Free Lgt. Regenerative Plating | -7/Data Miner | Free Cld. Cesium-ion Thruster | -7/Data Miner | Free Gravity Neutralizer | -7/Data Miner | Free Scatter Rocket Array | -7/Data Miner | Free Arm. Medium Treads | -7/Data Miner | Free Recoil Nullifier | -7/Data Miner | Free Hyp. Gauss Cannon | -7/Data Miner | Free Hyp. Gauss Rifle | -7/Data Miner | Free Adv. Melee Analysis Suite | -6/Factory | Hacked Hvy. Reactive Plating | -6/Factory | Hacked Adv. Hacking Suite | -6/Factory | Hacked Hvy. Riot Gun | -6/Zion | Free Arc Thrower | -6/Zion | Free Flamer | -6/Zion | Free Tactical Coordination Suite | -6/Zion | Free Hvy. Pick | -6/Zion | Archive Fusion Compressor | -6/Zion | Archive Lrn. Proton Cannon | -6/Zion | Archive Force Field | -6/Zion | Archive Imp. Dynamic Insulation System | -6/Zion | Archive Imp. Proton Missile Launcher | -6/Zion | Archive HERF Cannon | -6/Zion | Archive Imp. Force Field | -6/Zion | Archive Cloaking Device | -6/Zion | Archive Adv. Field Recycling Unit | -6/Zion | Archive Point Defense System | -6/Zion | Archive Drone Bay | -6/Zion | Archive Hyp. Mass Driver | -5/Factory | Hacked Heavy Servo Lattice | -5/Factory | Hacked CPS Tube | -5/Factory | Scanalyzed Transmission Jammer | -5/Factory | Hacked Centrium Wheel | -5/Factory | Hacked Imp. Powered Armor | -4/Factory | Scanalyzed Assault Drone Bay | -4/Zhirov | Free Exp. Heat Sink | -4/Zhirov | Free Exp. Optical Array | -4/Zhirov | Free Imp. Arc Thrower | -4/Zhirov | Free Prc. Matter Filter | -3/Research | Scanalyzed Adv. Transmission Jammer | -3/Testing | Hacked Point Singularity Launcher | -3/Testing | Hacked Exp. Force Field | -3/Testing | Hacked Com. Particle Reactor | -3/Testing | Archive Imp. Diametric Drive | -3/Testing | Archive Exp. Signal Interpreter | -3/Testing | Archive Hdn. Centrium Wheel | -2/Quarantine | Hacked Exp. Weapon Cycler | -2/Quarantine | Hacked Singularity Reactor | -2/Quarantine | Hacked Exp. Phase Shifter | -2/Quarantine | Hacked Biometal Heavy Treads | -2/Quarantine | Hacked Adv. Heavy Siege Treads | -2/Quarantine | Hacked Enh. Quantum Rifle | -2/Quarantine | Hacked Mapping Drone Bay | -2/Quarantine | Scanalyzed Robot Schematics ------------------ M-14 Sweeper | -7/Data Miner | Free B-48 Gladiator | -7/Data Miner | Free S-27 Virus | -7/Data Miner | Free Y-54 Guardian | -7/Data Miner | Free A-15 Conveyor | -6/Zion | Archive H-66 Slayer | -6/Zion | Archive G-73 Enforcer | -6/Zion | Archive Fabricated ------------ Huge Storage Unit | x1 | -7/Factory Adv. Hacking Suite | x1 | -6/Factory | Authchip Adv. Hacking Suite | x1 | -6/Factory | Authchip Adv. Hacking Suite | x1 | -6/Factory | Authchip Combat Drone Bay | x1 | -6/Factory | Authchip Hyp. Mass Driver | x2 | -5/Factory | Preloaded Recoil Nullifier | x2 | -5/Factory | Authchip Hyp. Mass Driver | x2 | -5/Factory Combat Drone Bay | x1 | -5/Factory L-61 Swordsman | x3 | -4/Factory | Preloaded Combat Drone Bay | x1 | -4/Factory | Authchip Ragnarok Missile Launcher | x1 | -3/Testing | Preloaded Adv. Transmission Jammer | x1 | -3/Testing | Authchip Centrium Wheel | x2 | -3/Testing Heavy Servo Lattice | x1 | -1/Access Alien Tech Used ----------------- Core Expander Integrated Reactor Sigix Broadsword Phase Armor Dimensional Node Initializer Integrated Dissipator Spacefold Activator Integrity Redistributor LRC Inertial Stabilizer High-powered Transdimensional Reconstructor Subatomic Replicator Core Physics Calibrator Transdimensional Reconstructor Achievements -------------- None Challenges ------------ None Game ------ Seed ForceTripodBeamcaster Manual? 0 Play Time 25:36:19 Cumulative 612.9 hours Start 2024.03.03 @ 00:34:57 End 2024.03.10 @ 15:54:46 Sessions 50 Manual Loads 0 Difficulty Rogue Special Mode None Game No. 56 Rogue 46 Adventurer 5 Explorer 5 Win Type 6 Total 23 Types 6/5/4/0/3/1/3/0/1 Lore% 84 Gallery% 91 Achievement% 85 Wizard Run 0 Options --------- Layout 0 ASCII 0 Keyboard 1 Movement Numpad Keybinds 0 Fullscreen 1 Font 24/Smallcaps Map View 130x56 Zoom Use 0% Tactical HUD 1 Map Filters NONE Filters NONE Steam 1 RUN: e934d71a-ace3-4770-b858-ba0f5f29a104